Cogmind - Beta 12 @@@ ROGUE MODE // 2023.03.28 @ 22:38:35 Player: Infomantis Result: Core destroyed Performance ------------- Evolutions (9) 4500 Regions Visited (30) 6000 Robots Destroyed (405) 2025 Value Destroyed (26390) 26390 Prototype IDs (29) 580 Alien Tech Used (13) 2600 Bonus (21535) 21535 TOTAL SCORE: 63630 Bonus ------- High Alert Combat Kills 6367 Follower Combat Kills 8748 Entered Garrisons 2000 Used RIF Installer 6000 Friendly Fire -1580 Cogmind --------- Core Integrity 0/1600 Matter 0/300 Energy 83/100 System Corruption 47% Temperature Cool (0) Movement Flying (40) Location -1/Command Parts ------- > --- POWER (3) -------- (None) > --- PROPULSION (6) --- Improved Q-thruster > --- UTILITY (14) ----- Advanced Targeting Computer Weapon Mount Relay Coupler [C] (29) Relay Coupler [C] (40) Relay Coupler [C] (48) Relay Coupler [C] (29) Relay Coupler [Demolisher] (29) Relay Coupler [Hunter] (20) Relay Coupler [Behemoth] (7) Spacefold Activator > --- WEAPON (3) ------- (None) > --- INVENTORY (7) ---- Light Quantum Reactor Advanced Hacking Suite Improved System Restoration Module Transdimensional Reconstructor Linear Accelerator Advanced Remote Datajack Advanced Remote Datajack Peak State ------------ > --- POWER ------------ Quantum Reactor Quantum Reactor Reinforced Quantum Reactor > --- PROPULSION ------- Advanced Heavy Siege Treads Advanced Heavy Siege Treads Advanced Heavy Siege Treads > --- UTILITY ---------- High-capacity Storage Unit Advanced Targeting Computer Weapon Mount Phase Armor Antimissile System Antimissile System Relay Coupler [C] Relay Coupler [C] Relay Coupler [C] Relay Coupler [C] Relay Coupler [Demolisher] Relay Coupler [Hunter] Relay Coupler [Behemoth] > --- WEAPON ----------- Enhanced Nova Cannon Enhanced Nova Cannon Enhanced Nova Cannon > --- INVENTORY -------- Light Quantum Reactor Improved Heavy Treads Biometal Medium Treads Biometal Medium Treads Advanced Hacking Suite Relay Coupler [C] Relay Coupler [Heavy] Improved System Restoration Module Mini Drone Bay Transdimensional Reconstructor Transdimensional Reconstructor Transdimensional Reconstructor Integrity Redistributor Spacefold Activator Micro-nuke Launcher Advanced Remote Datajack Advanced Remote Datajack [Rating: 225] Favorites ----------- Power Light Quantum Reactor Engine Cooled Deuterium Engine Power Core Light Nuclear Core Reactor Light Quantum Reactor Propulsion Myomer Leg Treads Light Treads Leg Myomer Leg Wheel Armored Wheel Flight Unit Improved Q-thruster Utility High-capacity Storage Unit Device Improved Cooling System Storage High-capacity Storage Unit Processor Core Analyzer Hackware Relay Coupler [C] Protection Layered Medium Armor Plating Artifact Phase Armor Weapon Enhanced Nova Cannon Energy Gun Wave Gun Energy Cannon Enhanced Nova Cannon Ballistic Gun Improved Assault Rifle Ballistic Cannon Improved Light Cannon Launcher Micro-nuke Launcher Special Weapon Advanced Remote Datajack Slashing Weapon Phasing Sabre Special Melee Weapon Improved Datajack Build | -11 -10 -10 -9 -9 -9 -8 -8 -8 -8 -8 -7 -7 -7 -7 -6 -6 -5 -5 -4 -4 -3 -3 -3 -3 -2 -2 -2 -2 -1 -1 ------- Run | Jun Mat Min Mat Min Exi Min Mat Gar Mat Gar Fac Gar Fac Gar Fac Gar Fac Gar Fac Gar Res Gar Res Gar Res Qua Sec Gar Acc Com Slots Evolved 18 | . . . 2 . . . 2 . . . 2 . . . 2 . 2 . 2 . 2 . . . 2 . . . 2 . Power 2 | . . . . . . . . . . . . . . . . . . . 1 . . . . . . . . . 1 . Propulsion 4 | . . . 1 . . . . . . . 1 . . . 1 . . . . . 1 . . . . . . . . . Utility 11 | . . . 1 . . . 1 . . . 1 . . . 1 . 2 . 1 . 1 . . . 2 . . . 1 . Weapon 1 | . . . . . . . 1 . . . . . . . . . . . . . . . . . . . . . . . Parts Attached 667 | 8 8 2 13 3 4 8 6 24 3 14 12 22 7 11 32 34 4 25 36 36 72 27 4 45 20 14 52 38 56 27 Power 72 | 2 2 . 3 . . 1 1 2 1 1 1 . . 1 1 2 . 2 6 2 7 3 . 8 3 . 3 5 12 3 Engine 15 | 2 2 . 1 . . 1 1 . 1 . 1 . . . . 2 . 1 3 . . . . . . . . . . . Core 9 | . . . 2 . . . . 2 . 1 . . . . . . . . 2 2 . . . . . . . . . . Reactor 48 | . . . . . . . . . . . . . . 1 1 . . 1 1 . 7 3 . 8 3 . 3 5 12 3 Propulsion 139 | 2 1 2 5 . . 2 2 4 1 5 2 4 2 1 6 8 1 8 5 7 9 3 2 16 6 1 4 14 11 5 Treads 54 | 2 1 2 5 . . 2 2 4 1 3 2 1 2 1 4 6 . 1 1 1 1 . . 2 1 . . . 5 4 Leg 74 | . . . . . . . . . . . . . . . . . . 7 4 6 8 3 2 14 5 1 4 14 6 . Wheel 10 | . . . . . . . . . . 2 . 3 . . 2 2 1 . . . . . . . . . . . . . Hover . | . . . . . . . . . . . . . . . . . . . . . . . . . . . . . . . Flight 1 | . . . . . . . . . . . . . . . . . . . . . . . . . . . . . . 1 Utility 226 | 2 2 . 4 1 2 3 2 12 . 3 3 7 2 4 13 8 2 2 10 12 28 15 1 12 9 5 17 13 18 14 Device 68 | 1 1 . 1 1 1 3 . 3 . . 1 2 . . 4 3 1 1 1 3 17 1 . 1 2 1 5 3 5 6 Storage 7 | 1 1 . 1 . 1 . 1 . . . . . . . . 1 . . . . . . . . . . . . . 1 Processor 10 | . . . . . . . . . . . . . . . . . . . 3 . . 2 . . 2 . 1 . . 2 Hackware 78 | . . . . . . . . 2 . 2 1 5 1 1 1 1 . 1 2 6 6 7 1 9 4 2 5 10 9 2 Protection 59 | . . . 2 . . . 1 7 . 1 1 . 1 3 8 3 1 . 4 3 5 5 . 2 1 1 5 . 4 1 Artifact 4 | . . . . . . . . . . . . . . . . . . . . . . . . . . 1 1 . . 2 Weapon 230 | 2 3 . 1 2 2 2 1 6 1 5 6 11 3 5 12 16 1 13 15 15 28 6 1 9 2 8 28 6 15 5 Energy Gun 36 | . . . . . . . 1 1 1 2 2 1 2 1 1 8 . 4 4 . 2 2 1 1 . . . . . 2 Energy Cannon 48 | . . . . . . . . 1 . . . 1 . 1 6 1 . . 2 2 7 . . . 1 4 6 5 11 . Ballistic Gun 42 | 2 3 . 1 1 . . . 1 . . . . . . . 2 . 4 2 5 2 1 . 5 1 4 8 . . . Ballistic Cannon 18 | . . . . . 2 1 . 2 . 1 1 4 . 1 . . . . . . 4 . . . . . . . . 2 Launcher 19 | . . . . 1 . 1 . . . . 2 1 . 1 2 1 . 1 2 . 2 1 . . . . 2 . 1 1 Special Weapon 56 | . . . . . . . . . . . 1 1 1 1 3 4 1 4 5 6 10 2 . 2 . . 11 1 3 . Impact Weapon . | . . . . . . . . . . . . . . . . . . . . . . . . . . . . . . . Slashing Weapon 4 | . . . . . . . . . . . . . . . . . . . . 2 1 . . 1 . . . . . . Piercing Weapon . | . . . . . . . . . . . . . . . . . . . . . . . . . . . . . . . Special Melee Weapon 7 | . . . . . . . . 1 . 2 . 3 . . . . . . . . . . . . . . 1 . . . Unidentified Prototypes 18 | . 1 . . . . . . . 1 . 1 . . . . . . . 2 . 3 . . . . 2 6 . . 2 Corrupted Parts 4 | . . . . . . . . . . . . . . . . . . . . . 2 . . . . . . . . 2 System Corruption 31 | . . . . . . . . . . . . . . . . . . . . . 16 . . . . . . . . 15 Parts Lost 133 | . . . . 2 . 2 . 3 . 3 1 3 . 1 5 7 . . 14 2 13 12 . 16 . 2 9 6 13 19 Power 17 | . . . . . . 1 . . . 1 . . . . 1 . . . 2 . 4 . . 3 . . 1 . 1 3 Propulsion 28 | . . . . . . . . . . 1 . 2 . . 2 2 . . 2 1 1 4 . 4 . . 3 2 . 4 Utility 55 | . . . . 1 . 1 . 1 . 1 1 . . 1 1 2 . . 7 . 6 5 . 5 . 1 3 4 9 6 Weapon 33 | . . . . 1 . . . 2 . . . 1 . . 1 3 . . 3 1 2 3 . 4 . 1 2 . 3 6 Highest Loss Streak 12 | . . . . 2 . 2 . 1 . 1 1 2 . 1 4 3 . . 10 1 4 9 . 12 . 1 5 2 2 9 To Critical Strikes 3 | . . . . . . . . . . . . . . . 1 . . . . . . 1 . . . . . 1 . . Average Slot Usage (%) 92 | . 100 100 98 95 95 98 100 98 100 96 97 93 83 83 78 91 98 99 87 98 90 78 93 93 94 94 94 96 87 81 Engine 2 | . 14 14 2 . . 9 9 1 3 6 4 7 7 . . 5 5 4 1 3 . . . . . . . . . . Core 1 | . . . 8 11 11 . . 7 5 2 2 . . . . . . . 3 6 1 . . . . . . . . . Reactor 4 | . . . . . . . . . . . . . . 6 5 . . . 2 . 5 6 9 8 8 8 7 8 10 9 Treads 13 | . 28 28 33 33 33 33 27 27 27 14 17 17 16 23 12 17 20 15 1 2 4 2 . 2 4 4 . . 8 11 Leg 8 | . . . . . . . . . . . . . . . . . . 2 23 23 19 18 22 24 17 17 23 24 5 . Wheel 2 | . . . . . . . . . . 11 10 7 5 . 6 8 8 9 . . . . . . . . . . . . Device 8 | . 14 14 17 11 18 21 18 13 9 8 6 8 14 7 6 7 10 11 5 5 10 3 . 1 2 1 3 5 2 4 Storage 6 | . 14 14 11 11 11 11 9 9 9 9 7 7 7 7 6 6 5 5 5 5 4 4 4 4 4 4 4 4 3 2 Processor 1 | . . . . . . . . . . . . . . . . . . . 2 10 6 4 9 9 4 . 2 4 . 1 Hackware 19 | . . . . . . . . 2 9 9 14 12 7 8 13 17 17 17 19 20 18 14 33 22 36 43 35 36 41 37 Protection 4 | . . . 2 7 . . 9 9 9 7 7 7 7 12 12 6 10 11 5 4 3 5 . 2 1 1 3 . 1 . Energy Gun 3 | . . . . . . . 9 7 6 7 6 2 6 1 . 11 5 12 7 . 1 3 4 . . . . . . . Energy Cannon 3 | . . . . . . . . 7 . . . 1 . 5 5 . . . 2 4 2 . . . . . 4 11 9 8 Ballistic Gun 4 | . 28 28 22 17 1 . . . 9 3 . . . . . 4 5 1 3 4 . . 4 7 7 7 6 . . . Ballistic Cannon 4 | . . . . . 19 22 18 8 11 14 15 12 7 6 6 . . . . . 2 2 . . . . . . . . Special Weapon 1 | . . . . . . . . . . . . . . . . . 4 2 . 1 2 3 4 3 4 3 1 . . . Naked Turns . | . . . . . . . . . . . . . . . . . . . . . . . . . . . . . . . Heaviest Build 201 | 13 32 30 35 36 55 59 59 78 67 67 75 90 95 102 102 101 80 97 110 97 121 133 92 114 114 120 143 141 175 201 Greatest Support 250 | 40 40 40 60 60 60 60 62 69 69 69 83 103 131 131 28 56 96 143 143 138 112 112 126 131 120 108 179 179 183 250 Greatest Overweight (x) 7 | . . . . . . . . 1 . 4 3 6 1 . 3 6 2 7 1 1 1 1 . 1 . 1 1 1 1 1 Average Overweight (x) . | . . . . . . . . . . 1 1 . . . 3 1 1 1 . . . . . . . . . . . . Largest Inventory Capacity 22 | 8 15 15 15 15 20 20 20 20 20 20 20 20 20 20 20 20 20 20 20 20 20 20 20 20 20 20 22 22 22 22 Average Capacity 19 | 7 14 15 15 15 15 20 20 20 20 20 20 20 20 20 20 20 20 20 20 20 20 20 20 20 20 20 20 22 22 21 Most Carried 22 | 8 15 15 15 15 15 19 19 20 20 20 20 20 20 20 20 20 20 20 20 20 20 20 20 20 20 20 22 22 22 22 Average Carried 19 | 4 13 14 14 14 14 16 18 19 19 19 19 19 19 19 19 19 19 19 19 19 19 17 19 19 19 19 20 21 21 19 Final Capacity 22 | 8 15 15 15 15 20 20 20 20 20 20 20 20 20 20 20 20 20 20 20 20 20 20 20 20 20 20 22 22 22 7 Final Carried 22 | 8 15 15 15 14 15 19 19 20 20 20 20 20 20 20 16 20 19 20 20 20 19 20 19 20 19 20 22 22 22 7 Class Distribution -------------------- 43% | Botlord-Mutant 15% | Botlord-Tank 8% | Mutant 8% | Bothacker-Tank 7% | Botlord-Gunner 6% | Bothacker-Mutant 6% | Scavenger-Mutant Dominant Class ---------------- Mutant | -10/Materials Mutant | -10/Mines Mutant | -9/Materials Scavenger-Mutant | -9/Mines Scavenger-Mutant | -9/Exiles Scavenger-Mutant | -8/Mines Scavenger-Tank | -8/Materials Bothacker-Mutant | -8/Garrison Bothacker-Tank | -8/Materials Bothacker-Mutant | -8/Garrison Bothacker-Tank | -7/Factory Bothacker-Mutant | -7/Garrison Botlord-Tank | -7/Factory Botlord-Mutant | -7/Garrison Botlord-Mutant | -6/Factory Botlord-Mutant | -6/Garrison Botlord-Mutant | -5/Factory Botlord-Mutant | -5/Garrison Botlord-Mutant | -4/Factory Botlord-Mutant | -4/Garrison Botlord-Mutant | -3/Research Botlord-Mutant | -3/Garrison Botlord-Mutant | -3/Research Botlord-Mutant | -3/Garrison Botlord-Mutant | -2/Research Botlord-Mutant | -2/Quarantine Botlord-Mutant | -2/Section 7 Botlord-Tank | -2/Garrison Botlord-Gunner | -1/Access Botlord-Gunner | -1/Command Resources | -11 -10 -10 -9 -9 -9 -8 -8 -8 -8 -8 -7 -7 -7 -7 -6 -6 -5 -5 -4 -4 -3 -3 -3 -3 -2 -2 -2 -2 -1 -1 ----------- Run | Jun Mat Min Mat Min Exi Min Mat Gar Mat Gar Fac Gar Fac Gar Fac Gar Fac Gar Fac Gar Res Gar Res Gar Res Qua Sec Gar Acc Com Matter Collected 15584 | 314 184 326 360 66 . 332 . 650 . 785 219 1242 175 576 535 806 104 497 549 650 1640 803 160 1326 300 335 1211 370 872 197 Remotely 82 | . . . . . . . . 82 . . . . . . . . . . . . . . . . . . . . . . Salvage Created 20107 | 190 369 744 591 66 . 161 . 601 . 1040 445 793 81 468 640 1011 61 663 1038 564 1530 480 . 1140 233 174 987 1412 4058 567 Parts 866 | 15 25 28 36 7 . 14 . 28 . 48 29 19 7 19 26 30 1 23 63 16 61 14 . 45 16 8 55 52 167 14 Haulers Intercepted 4 | . . . 1 . . . . . . . . . . . . . . 1 . . . . . . . . . . 2 . Recyclers Shooed 9 | . . 4 . . . . . . . . 1 . . . 1 . . . . . 2 . . . 1 . . . . . Parts Field Recycled . | . . . . . . . . . . . . . . . . . . . . . . . . . . . . . . . Retrieved Matter . | . . . . . . . . . . . . . . . . . . . . . . . . . . . . . . . Parts Self-Destructed . | . . . . . . . . . . . . . . . . . . . . . . . . . . . . . . . Prevented . | . . . . . . . . . . . . . . . . . . . . . . . . . . . . . . . Kills | -11 -10 -10 -9 -9 -9 -8 -8 -8 -8 -8 -7 -7 -7 -7 -6 -6 -5 -5 -4 -4 -3 -3 -3 -3 -2 -2 -2 -2 -1 -1 ------- Run | Jun Mat Min Mat Min Exi Min Mat Gar Mat Gar Fac Gar Fac Gar Fac Gar Fac Gar Fac Gar Res Gar Res Gar Res Qua Sec Gar Acc Com Combat Hostiles Destroyed 349 | . 13 6 9 5 . 10 . 18 . 20 15 12 4 14 17 14 1 13 14 10 26 9 . 17 3 2 20 21 48 8 Melee 6 | . . . . . . . . . . . . . . . . . . . . 2 3 . . 1 . . . . . . Guns 112 | . 13 6 9 4 . . . 2 . 9 . 1 2 1 . 9 . 9 10 6 1 5 . 16 3 2 4 . . . Cannons 174 | . . . . . . 9 . 15 . 11 8 6 2 10 9 2 . . . 2 20 3 . . . . 10 20 42 5 AOE 43 | . . . . 1 . 1 . . . . 7 5 . 2 6 3 1 4 4 . 2 1 . . . . 6 . . . Classes Destroyed 24 | 3 3 . 4 1 . . . 4 . 1 1 1 . . 1 . . . . . . . . . 1 . 1 . 2 1 Worker 13 | 1 . 2 . . . . . . . . . . . . . . . . 8 . 1 . . . . 1 . . . . Builder 4 | . . . 1 . . . . . . . . . . . . . . . 1 . 2 . . . . . . . . . Tunneler 11 | 4 . 1 . . . 2 . . . . . . . . . . . . 2 . 2 . . . . . . . . . Hauler 4 | . . . 1 . . . . . . . . . . . . . . 1 . . . . . . . . . . 2 . Recycler 11 | 1 1 5 1 . . . . . . . 1 . . . . . . . . . 1 . . . . . . . 1 . Mechanic 1 | . . . . . . . . . . . . . . . . . . . . . . . . . . . . . 1 . Operator 3 | . 1 . . . . . . . . . . . 2 . . . . . . . . . . . . . . . . . Watcher 4 | . . . . . . . . . . . 2 . 1 1 . . . . . . . . . . . . . . . . Swarmer 68 | . 9 . . 4 . 4 . 4 . . 8 5 . 2 . 5 . 4 . 7 3 . . 3 . . 4 3 3 . Cutter 6 | . . . . . . . . . . 2 . . . . . . . . . . . . . . . . . 4 . . Saboteur 1 | . . . . . . . . . . . . . . . . . . . . . . . . . . . . . 1 . Grunt 108 | . 4 6 4 . . 6 . 3 . 8 3 2 . 9 8 6 . 5 2 3 6 . . 7 . . 2 9 14 1 Brawler 15 | . . . . . . . . 3 . 2 . . . . 2 . . 1 1 . 1 . . 1 . . . . 4 . Duelist 11 | . . . 1 . . . . . . 1 . . . 1 1 . . 1 . . . 1 . 2 . . . . 3 . Protector 3 | . . . . . . . . . . . . . . . 1 . . . . . 1 . . . . . . . 1 . Sentry 34 | . . . 4 . . . . 3 . 1 2 1 2 2 1 2 1 . 1 . 2 1 . 2 . 1 4 1 3 . Demolisher 1 | . . . . . . . . . . . . . . . . . . . . . . . . . . . . . . 1 Specialist 3 | . . . . . . . . 1 . . . 1 . . . . . . . . . . . . . . . 1 . . Hunter 32 | . . . . . . . . 2 . 2 1 1 1 . 2 . . . 7 1 6 2 . 1 . . . 1 1 4 Programmer 65 | . . . . . . . . 2 . 4 1 2 1 . 2 . . 2 4 . 7 5 . 1 2 1 7 2 21 1 Heavy 1 | . . . . . . . . . . . . . . . . . . . . . . . . . 1 . . . . . Behemoth 2 | . . . . . . . . . . . . 1 . . . 1 . . . . . . . . . . . . . . S7 Guard 1 | . . . . . . . . . . . . . . . . . . . . . . . . . . . 1 . . . Combat Programmer 1 | . . . . . . . . . . . . . . . . . . . . . . . . . . . . . . 1 Executioner 2 | . . . . . . . . . . . . . . . . . . . . . . . . . . . 2 . . . Assembled 1 | . . . . 1 . . . . . . . . . . . . . . . . . . . . . . . . . . Infiltrator 1 | . . . . . . . . . . . . . . . . . . . . . . . . 1 . . . . . . Best Kill Streak 8 | 3 5 8 3 4 . 5 . 5 . 6 8 5 1 3 8 6 1 7 5 3 4 2 . 4 2 1 6 5 6 2 Combat Bots Only 8 | . 5 2 3 4 . 5 . 5 . 6 6 5 1 3 8 6 1 7 3 3 3 2 . 4 2 1 6 5 4 2 Max Kills in Single Turn 4 | 1 1 1 2 1 . 1 . 1 . 1 3 2 1 1 3 2 1 4 3 2 2 1 . 1 1 1 4 2 2 1 Gunslinging 1 | . . . . . . . . . . . . . . . . . . . 1 . . . . . . . . . . . Exploded 4 | . . . . 1 . 1 . . . . 3 2 . 1 3 2 1 4 2 . 2 1 . . . . 4 . . . Melee 1 | . . . . . . . . . . . . . . . . . . . . 1 1 . . 1 . . . . . . Uniques/NPCs Destroyed . | . . . . . . . . . . . . . . . . . . . . . . . . . . . . . . . Combat | -11 -10 -10 -9 -9 -9 -8 -8 -8 -8 -8 -7 -7 -7 -7 -6 -6 -5 -5 -4 -4 -3 -3 -3 -3 -2 -2 -2 -2 -1 -1 -------- Run | Jun Mat Min Mat Min Exi Min Mat Gar Mat Gar Fac Gar Fac Gar Fac Gar Fac Gar Fac Gar Res Gar Res Gar Res Qua Sec Gar Acc Com Damage Taken 42249 | . 378 211 416 269 . 536 . 1127 . 1058 743 1031 348 1248 1373 1408 38 787 3698 1290 3848 1673 . 3089 292 926 3963 1651 5547 5301 Core 4900 | . 100 35 44 19 . 28 . 215 . 138 121 169 28 114 110 165 19 150 329 118 191 66 . 267 21 77 434 136 562 1244 Absorbed by Shields 921 | . . . . . . . . . . . . 25 152 . . . . 21 . . . 11 . 24 . . . 24 664 . Redirected to Core 613 | . . . . . . . . . . . . . . . . . . . . . . . . . . . . . . 613 Redirected to Shielding 6 | . . . . . . . . . . . . . . . . . . . . . . . . . . . . . 6 . Regen/Repaired (Parts) 680 | . . . . . . . . . . . . . 156 . 130 . . . . . . . . . . . 394 . . . Core Remaining (%) 64 | 100 . 46 . . . 77 . . . 35 . . . 38 . 67 . 83 . 61 . . . 59 . . . 78 . . Volleys Fired 1516 | 22 56 38 40 12 . 41 . 49 . 85 22 94 23 52 42 96 18 57 92 32 131 63 4 88 17 18 89 47 145 43 Largest 3 | 2 2 2 2 2 . 2 . 3 . 3 3 3 2 2 2 3 2 3 3 2 2 2 1 2 2 2 3 3 3 3 Hottest 360 | 40 46 46 46 46 . 78 . 164 . 162 166 166 171 188 188 247 109 195 195 135 199 155 7 132 105 105 346 346 360 360 Shots Fired 2867 | 44 112 76 80 17 . 78 . 124 . 205 56 155 41 73 63 168 21 103 181 48 207 87 4 139 31 28 169 128 330 99 Gun 1314 | 44 112 76 80 10 . . . 39 . 124 17 38 18 16 5 147 6 87 156 16 22 47 . 124 28 22 65 . . 15 Cannon 1318 | . . . . . . 76 . 85 . 81 34 113 21 51 45 10 . . 14 22 145 21 . . 2 2 77 128 312 79 Launcher 56 | . . . . 7 . 2 . . . . 4 3 . 3 5 3 . 1 4 . 4 3 . . . . 10 . 2 5 Special 179 | . . . . . . . . . . . 1 1 2 3 8 8 15 15 7 10 36 16 4 15 1 4 17 . 16 . Kinetic 1233 | 44 112 76 80 10 . 76 . 45 . 131 34 113 21 20 21 19 3 21 54 16 78 23 . 103 28 22 65 . . 18 Thermal 1399 | . . . . . . . . 79 . 74 17 38 18 47 29 138 3 66 116 22 89 45 . 21 2 2 77 128 312 76 Explosive 56 | . . . . 7 . 2 . . . . 4 3 . 3 5 3 . 1 4 . 4 3 . . . . 10 . 2 5 Electromagnetic . | . . . . . . . . . . . . . . . . . . . . . . . . . . . . . . . Robot Hit Streak 33 | 8 18 7 13 5 . 15 . 8 . 23 6 20 10 6 3 33 5 8 11 9 8 16 20 23 4 4 16 9 12 19 Robot Miss Streak 7 | 4 5 3 3 2 . 4 . 3 . 7 4 4 2 3 3 6 5 5 4 4 4 5 . 3 5 2 3 4 7 4 Penetration Max 2 | . . . . . . . . . . 1 1 1 . . . . . . 1 2 1 . . 1 1 1 . . . . Secondary Targets 11 | . 2 . 2 3 . . . . . . . . . . . 1 . 1 1 . . . . . . 1 . . . . Max Gunslinging Chain 1 | . 1 . 1 1 . . . . . . . . . . . 1 . 1 1 . . . . . . 1 . . . . Shots Hit Robots 1771 | 31 70 50 55 8 . 46 . 71 . 151 27 102 31 32 27 128 10 66 100 36 133 58 4 89 16 14 106 68 177 65 Core Hits 791 | 11 27 20 20 6 . 19 . 23 . 52 27 43 8 21 24 54 5 59 43 14 63 18 . 38 9 6 39 34 74 34 Critical Kills 21 | . 1 . . . . . . . . . . 5 . 1 2 . . . . . . . . . . . 2 1 7 2 Critical Parts Destroyed 18 | . . 1 . . . . . . . . . 15 . . . . . . . . . . . . 1 . 1 . . . Critical Strikes 102 | . 1 1 . . . . . 2 . 9 5 24 2 3 4 7 . 3 . . 9 12 . 2 2 . 5 1 7 3 Burn 27 | . . . . . . . . . . 5 . 1 . . . 6 . 3 . . 3 7 . 2 . . . . . . Meltdown 13 | . . . . . . . . . . . . . . 1 2 . . . . . . . . . . . . 1 7 2 Destroy 30 | . 1 1 . . . . . . . . . 21 . . . . . . . . . . . . 2 . 5 . . . Blast 32 | . . . . . . . . 2 . 4 5 2 2 2 2 1 . . . . 6 5 . . . . . . . 1 Melee Attacks 73 | . . . . . . . . 4 . 22 . 10 . . . . . . . 20 16 . . 1 . . . . . . Impact . | . . . . . . . . . . . . . . . . . . . . . . . . . . . . . . . Slashing 37 | . . . . . . . . . . . . . . . . . . . . 20 16 . . 1 . . . . . . Piercing . | . . . . . . . . . . . . . . . . . . . . . . . . . . . . . . . Sneak Attacks 26 | . . . . . . . . 1 . 21 . . . . . . . . . . 3 . . 1 . . . . . . Combat Hostiles 4 | . . . . . . . . 1 . . . . . . . . . . . . 2 . . 1 . . . . . . Follow-up Attacks . | . . . . . . . . . . . . . . . . . . . . . . . . . . . . . . . Damage Inflicted 58357 | 273 804 794 945 233 . 1132 . 1542 . 2659 1458 2645 1512 1811 2355 3480 280 1750 4110 1563 5264 1724 . 2376 451 355 4727 3042 8032 3040 Guns 19203 | 270 801 770 945 112 . . . 373 . 1485 125 602 393 234 25 2504 79 1379 2828 260 556 1077 . 2308 451 355 916 . . 355 Cannons 28724 | . . . . . . 956 . 1169 . 1174 581 1377 1106 1161 1464 630 . . 282 290 3379 476 . . . . 1646 3042 7799 2192 Explosions 8531 | . . . . 121 . 176 . . . . 746 666 . 416 866 346 201 338 958 . 760 171 . . . . 2121 . 170 475 Melee 1613 | . . . . . . . . . . . . . . . . . . . . 1013 532 . . 68 . . . . . . Ramming 286 | 3 3 24 . . . . . . . . 6 . 13 . . . . 33 42 . 37 . . . . . 44 . 63 18 Kinetic 20155 | 270 801 770 945 112 . 956 . 590 . 1570 581 1377 1106 697 1094 762 54 406 892 260 2081 508 . 1958 451 355 916 . . 643 Thermal 28281 | . . . . . . . . 952 . 1089 125 602 393 698 395 2372 226 973 2501 290 1854 1045 . 350 . . 1646 3042 7824 1904 Explosive 7916 | . . . . 121 . 176 . . . . 746 666 . 416 866 346 . 338 675 . 760 171 . . . . 2121 . 39 475 Electromagnetic 106 | . . . . . . . . . . . . . . . . . . . . . . . . . . . . . 106 . Impact . | . . . . . . . . . . . . . . . . . . . . . . . . . . . . . . . Slashing 1613 | . . . . . . . . . . . . . . . . . . . . 1013 532 . . 68 . . . . . . Piercing . | . . . . . . . . . . . . . . . . . . . . . . . . . . . . . . . Highest Corruption 47 | . . . . . . . . . . 1 . 1 1 1 3 3 . 3 12 12 26 33 33 33 . 3 5 . 16 47 Average Corruption 10 | . . . . . . . . . . 1 . 1 1 1 1 3 . 2 8 12 9 29 33 33 . 1 4 . 10 20 Corruption Purged . | . . . . . . . . . . . . . . . . . . . . . . . . . . . . . . . Corruption Blocked 52 | . . . . . . . . . . . . . . . . . . . . . . 2 . 8 2 . 40 . . . Effects 603 | . . . . . . . . . . 3 . 11 9 6 1 39 . 19 36 42 72 40 9 104 . 3 23 . 128 58 Message Errors 120 | . . . . . . . . . . . . . 2 1 . 7 . 4 5 9 14 6 4 22 . . 8 . 27 11 Matter Fused 146 | . . . . . . . . . . 1 . 5 1 2 . 11 . 2 8 12 18 9 3 34 . . 5 . 25 10 Heat Flow Errors 58 | . . . . . . . . . . 1 . 2 1 . . 3 . 1 6 6 5 2 1 4 . 1 1 . 20 4 Energy Discharges 69 | . . . . . . . . . . . . 4 . . 1 6 . 5 3 5 9 4 . 6 . . 3 . 14 9 Parts Rejected 7 | . . . . . . . . . . . . . . . . . . . 1 . 2 . . . . . . . 4 . Parts Fused 13 | . . . . . . . . . . . . . . . . 1 . 1 . . 1 3 . 1 . . 1 . 3 2 Data Loss (minor) 70 | . . . . . . . . . . . . . 4 2 . 5 . 4 8 5 5 6 . 6 . 1 1 . 17 6 Data Loss (major) 24 | . . . . . . . . . . . . . 1 . . 2 . 1 . 2 4 . . 3 . 1 1 . 5 4 Misfires 16 | . . . . . . . . . . . . . . 1 . 1 . . 1 1 3 3 . 2 . . 1 . 3 . Alerts 17 | . . . . . . . . . . 1 . . . . . 2 . . 2 . 1 1 . 5 . . 2 . 1 2 Misdirections 26 | . . . . . . . . . . . . . . . . . . . . 2 7 1 1 10 . . . . 4 1 Weapon Failures 37 | . . . . . . . . . . . . . . . . 1 . 1 2 . 3 5 . 11 . . . . 5 9 Overload Shots . | . . . . . . . . . . . . . . . . . . . . . . . . . . . . . . . Overflow Damage 1732 | . . . . 22 . 30 . 8 . . 12 25 156 182 85 45 . 3 138 268 227 15 . . . . 135 16 280 85 Projectiles 947 | . . . . . . 30 . 8 . . 2 3 156 47 85 34 . . 34 13 154 . . . . . . 16 280 85 Explosions 439 | . . . . 22 . . . . . . 10 22 . 135 . 11 . 3 92 . 11 15 . . . . 118 . . . Melee 346 | . . . . . . . . . . . . . . . . . . . 12 255 62 . . . . . 17 . . . Knockbacks 70 | . . 1 . . . 8 . 5 . 7 1 5 2 3 3 1 . . 1 . 22 5 . . . . . . 1 5 Impact 4 | . . 1 . . . . . . . . . . . . . . . . 1 . 1 . . . . . . . 1 . Kinetic 62 | . . . . . . 8 . 5 . 7 1 5 2 3 3 1 . . . . 17 5 . . . . . . . 5 Secondary 4 | . . . . . . . . . . . . . . . . . . . . . 4 . . . . . . . . . Self-Inflicted Damage 418 | . . . . 116 . . . . . . 56 . . 63 19 . . . 54 . . 27 . . . . 28 . 55 . Shots 14 | . . . . 3 . . . . . . 2 . . 1 1 . . . 1 . . 1 . . . . 3 . 2 . Rammed 16 | 3 1 4 . . . . . . . . 1 . 1 . . . . 1 . . . . . . . . . . 3 2 Targets Rammed 22 | 3 1 4 . . . . . . . . 1 . 1 . . . . 1 1 . 2 . . . . . 3 . 3 2 Kicked 6 | . . . . . . . . . . . . . . . . . . . 1 . 2 . . . . . 3 . . . Crushed . | . . . . . . . . . . . . . . . . . . . . . . . . . . . . . . . Highest Temperature 563 | . 12 10 . 18 . 22 . 298 . 315 33 105 83 184 156 248 8 300 563 232 541 144 209 282 12 129 329 181 178 178 Average Temperature 93 | . 6 2 . 12 . 11 . 62 . 63 11 16 17 54 53 82 6 89 139 56 137 39 112 82 5 67 102 116 118 104 Received Heat Transfer 5407 | . 90 120 105 20 . 234 . 192 . 234 165 168 100 396 363 408 18 225 268 117 343 48 . 446 9 72 288 135 555 288 Effects 27 | . . . . . . . . . . 1 . . . . . . . 1 8 . 10 . . 1 . . 6 . . . Shutdowns 3 | . . . . . . . . . . . . . . . . . . . 1 . 2 . . . . . . . . . Energy Bleed 5 | . . . . . . . . . . 1 . . . . . . . . 2 . . . . 1 . . 1 . . . Interference 13 | . . . . . . . . . . . . . . . . . . . 3 . 5 . . . . . 5 . . . Short Circuit 3 | . . . . . . . . . . . . . . . . . . . 2 . 1 . . . . . . . . . Damage (minor) 3 | . . . . . . . . . . . . . . . . . . 1 . . 2 . . . . . . . . . Siege Activations . | . . . . . . . . . . . . . . . . . . . . . . . . . . . . . . . Robots Corrupted . | . . . . . . . . . . . . . . . . . . . . . . . . . . . . . . . Combat Hostiles . | . . . . . . . . . . . . . . . . . . . . . . . . . . . . . . . Parts Fried 1 | . . . . . . . . . . . . . . . . . . . . . . . . . . . . . 1 . Impact Corruptions 5 | . . . . . . . . . . . . . . . . . . . 1 . 3 . . . . . 1 . . . Robots Melted 19 | . . . . . . . . 1 . 1 . 1 . 1 2 2 . . . . . . . . . . . 1 7 3 Combat Hostiles 14 | . . . . . . . . 1 . . . . . 1 2 . . . . . . . . . . . . 1 6 3 Parts Melted 93 | . . . 1 . . . . 1 . 2 . . . . 2 7 1 2 9 . 11 4 . 2 . . 1 13 28 9 Heat Transferred 32540 | . . . . . . . . 1739 . 2236 222 925 555 716 407 4416 137 1628 2703 296 2109 1719 . 555 . . 1517 2625 6593 1442 Parts Sabotaged 3 | . . . . . . . . . . . . . . . 3 . . . . . . . . . . . . . . . Parts Stolen . | . . . . . . . . . . . . . . . . . . . . . . . . . . . . . . . Parts Stripped . | . . . . . . . . . . . . . . . . . . . . . . . . . . . . . . . Power Chain Reactions 1 | . . . . . . . . . . . . . . . . . . . . . . . . . . . . . 1 . Missiles Intercepted 22 | . . . . . . . . . . . . . . . . . . . . . . . . . . . . . . 22 Alert | -11 -10 -10 -9 -9 -9 -8 -8 -8 -8 -8 -7 -7 -7 -7 -6 -6 -5 -5 -4 -4 -3 -3 -3 -3 -2 -2 -2 -2 -1 -1 ------- Run | Jun Mat Min Mat Min Exi Min Mat Gar Mat Gar Fac Gar Fac Gar Fac Gar Fac Gar Fac Gar Res Gar Res Gar Res Qua Sec Gar Acc Com Peak Influence 1337 | 30 197 180 308 223 . 250 59 1152 561 1182 770 1260 740 887 560 1166 658 861 730 1081 952 1081 686 1337 769 464 494 1213 1188 922 Initial 753 | . 19 47 11 112 . . 24 40 561 364 620 539 661 375 465 308 611 243 451 444 607 687 607 499 751 319 85 370 727 753 Average 614 | 19 101 50 207 205 . 98 27 762 561 724 567 933 648 678 459 912 536 627 535 793 546 863 639 800 701 312 184 778 920 778 Maximum Alert Level 4 | . . . 1 1 . 1 . 4 2 4 3 4 3 3 2 4 2 3 3 3 3 3 2 4 3 2 2 4 4 3 Low Security (%) 15 | 100 100 100 46 5 . 81 100 3 . . . . . . . . . . . . . . . . . 25 70 . . . Level 1 9 | . . . 53 94 . 18 . 9 . 8 . . . 14 14 4 10 17 16 . 19 . . . . 54 21 4 . . Level 2 34 | . . . . . . . . 28 100 53 84 17 83 38 85 6 89 44 77 42 72 4 100 39 59 19 8 37 5 18 Level 3 35 | . . . . . . . . 43 . 30 15 63 16 46 . 66 . 37 5 57 7 95 . 45 40 . . 47 83 81 Level 4 5 | . . . . . . . . 15 . 7 . 18 . . . 22 . . . . . . . 14 . . . 9 11 . Level 5 . | . . . . . . . . . . . . . . . . . . . . . . . . . . . . . . . High Security . | . . . . . . . . . . . . . . . . . . . . . . . . . . . . . . . Max Security . | . . . . . . . . . . . . . . . . . . . . . . . . . . . . . . . Squads Dispatched 87 | . 4 1 3 . . . 1 . . . 4 . 4 . 6 . 2 . 6 . 10 . 2 . 3 3 9 . 23 6 Investigation 16 | . 3 1 1 . . . 1 . . . 1 . 1 . . . . . . . 1 . 1 . 1 1 . . 4 . Extermination 24 | . . . . . . . . . . . 1 . 1 . 1 . . . 3 . 3 . . . 1 1 5 . 5 3 Reinforcement 27 | . 1 . 2 . . . . . . . 2 . 2 . 1 . 2 . 3 . 5 . 1 . . 1 3 . 4 . Assault 17 | . . . . . . . . . . . . . . . 3 . . . . . 1 . . . 1 . . . 9 3 Garrison 3 | . . . . . . . . . . . . . . . 1 . . . . . . . . . . . 1 . 1 . Intercept . | . . . . . . . . . . . . . . . . . . . . . . . . . . . . . . . Searches Triggered 1 | . . . . . . . . . . . . . . . . . . . . . . . . . . . 1 . . . Construction Impeded 3 | . . . . . . . . . . . 1 . . . . . . . . . 2 . . . . . . . . . Haulers Reinforced 1 | . . . . . . . . . . . . . 1 . . . . . . . . . . . . . . . . . Active Scanning Responses . | . . . . . . . . . . . . . . . . . . . . . . . . . . . . . . . Cargo Convoy Interrupts 1 | . . . . . . . . . . . . . . . . . . . . . 1 . . . . . . . . . Alert ID Control Effect 123 | . . . . . . . . . . . . . . . . . . 2 . 6 4 . 2 15 10 8 12 12 34 18 Stealth | -11 -10 -10 -9 -9 -9 -8 -8 -8 -8 -8 -7 -7 -7 -7 -6 -6 -5 -5 -4 -4 -3 -3 -3 -3 -2 -2 -2 -2 -1 -1 --------- Run | Jun Mat Min Mat Min Exi Min Mat Gar Mat Gar Fac Gar Fac Gar Fac Gar Fac Gar Fac Gar Res Gar Res Gar Res Qua Sec Gar Acc Com Distress Signals 23 | . 1 . 2 . . . 1 . . . 1 . 1 . . . . . . . 3 . . . . 1 3 . 7 3 Communications Jammed 442 | . . . . . . . . . . . . . . . . 22 . . 66 . 44 . . . 1 6 58 . 245 . Distress Signals 437 | . . . . . . . . . . . . . . . . 22 . . 66 . 44 . . . . 6 56 . 243 . Times Spotted 841 | . 23 6 18 5 . 12 2 31 1 25 23 20 11 22 25 36 10 40 31 29 76 24 8 44 19 16 49 34 145 56 Peak Tracking Total 13 | . 5 2 3 3 . 4 6 6 1 4 5 5 4 8 6 12 2 8 5 4 13 5 3 6 5 4 6 6 8 12 Tactical Retreats 31 | . . . . 2 . 2 . 1 . 3 . . . 3 . 2 . . 1 1 2 1 . 3 . 1 1 1 7 . Traps | -11 -10 -10 -9 -9 -9 -8 -8 -8 -8 -8 -7 -7 -7 -7 -6 -6 -5 -5 -4 -4 -3 -3 -3 -3 -2 -2 -2 -2 -1 -1 ------- Run | Jun Mat Min Mat Min Exi Min Mat Gar Mat Gar Fac Gar Fac Gar Fac Gar Fac Gar Fac Gar Res Gar Res Gar Res Qua Sec Gar Acc Com Traps Triggered 46 | . 1 . 3 . . . . 2 . 5 1 . . 2 3 3 . 3 1 1 3 2 . 3 . 1 2 4 5 1 Indirectly . | . . . . . . . . . . . . . . . . . . . . . . . . . . . . . . . Trap Hack Attempts 25 | . . . . . . . . . . . . 25 . . . . . . . . . . . . . . . . . . Triggered . | . . . . . . . . . . . . . . . . . . . . . . . . . . . . . . . Disarmed . | . . . . . . . . . . . . . . . . . . . . . . . . . . . . . . . Reprogrammed 6 | . . . . . . . . . . . . 2 . . . . 4 . . . . . . . . . . . . . Reused . | . . . . . . . . . . . . . . . . . . . . . . . . . . . . . . . Traps Extracted . | . . . . . . . . . . . . . . . . . . . . . . . . . . . . . . . Installed . | . . . . . . . . . . . . . . . . . . . . . . . . . . . . . . . Triggered . | . . . . . . . . . . . . . . . . . . . . . . . . . . . . . . . Most Traps Carried 1 | . . 1 1 1 1 1 1 1 . . . . . . . 1 1 1 . . . . . . . . . . . . Machines | -11 -10 -10 -9 -9 -9 -8 -8 -8 -8 -8 -7 -7 -7 -7 -6 -6 -5 -5 -4 -4 -3 -3 -3 -3 -2 -2 -2 -2 -1 -1 ---------- Run | Jun Mat Min Mat Min Exi Min Mat Gar Mat Gar Fac Gar Fac Gar Fac Gar Fac Gar Fac Gar Res Gar Res Gar Res Qua Sec Gar Acc Com Machines Disabled 75 | . . . . . . . . 6 . 1 2 4 . 2 1 3 2 2 8 6 3 4 . 5 . 2 10 4 7 3 Max in Single Turn 2 | . . . . . . . . 2 . 1 1 1 . 1 1 1 2 1 2 1 1 1 . 1 . 1 1 1 2 1 Garrison Access 5 | . . . . . . . . . . . . . . . . . . . . . 2 . . . . . . . 3 . Garrison Relay 30 | . . . . . . . . 3 . 1 . 3 . 2 . 2 . 3 . 4 . 3 . 5 . . . 4 . . Phase Generator 1 | . . . . . . . . 1 . . . . . . . . . . . . . . . . . . . . . . Machines Repaired . | . . . . . . . . . . . . . . . . . . . . . . . . . . . . . . . Machines Sabotaged . | . . . . . . . . . . . . . . . . . . . . . . . . . . . . . . . Overloaded Fab Kills . | . . . . . . . . . . . . . . . . . . . . . . . . . . . . . . . Hacking | -11 -10 -10 -9 -9 -9 -8 -8 -8 -8 -8 -7 -7 -7 -7 -6 -6 -5 -5 -4 -4 -3 -3 -3 -3 -2 -2 -2 -2 -1 -1 --------- Run | Jun Mat Min Mat Min Exi Min Mat Gar Mat Gar Fac Gar Fac Gar Fac Gar Fac Gar Fac Gar Res Gar Res Gar Res Qua Sec Gar Acc Com Machines Accessed 103 | . 7 1 2 . 1 . 2 3 1 2 6 1 4 . 3 4 4 3 5 2 8 1 2 2 3 4 11 3 13 5 Terminals 73 | . 6 . 2 . . . 1 3 . 2 4 1 2 . 1 4 3 3 2 2 3 1 1 2 3 3 8 3 9 4 Fabricators 4 | . . . . . . . . . . . 1 . . . . . . . 1 . 2 . . . . . . . . . Repair Stations 8 | . . . . . . . . . . . . . 1 . 1 . . . 1 . . . . . . 1 1 . 2 1 Recycling Units 1 | . 1 . . . . . . . . . . . . . . . . . . . . . . . . . . . . . Scanalyzers 1 | . . . . . . . . . . . . . . . . . . . . . . . . . . . 1 . . . Garrison Access 14 | . . . . . . . 1 . 1 . 1 . 1 . 1 . 1 . 1 . 3 . 1 . . . 1 . 2 . Total Hacks 197 | . 21 1 4 . 1 . 5 4 1 3 13 1 9 . 5 7 9 5 6 2 14 1 3 4 7 9 19 7 25 11 Successful 79 | . 9 1 2 . 1 . 4 2 1 1 6 1 5 . 1 1 7 2 2 1 4 1 1 . 1 3 12 2 7 1 Failed 118 | . 12 . 2 . . . 1 2 . 2 7 . 4 . 4 6 2 3 4 1 10 . 2 4 6 6 7 5 18 10 Catastrophic 36 | . 3 . 1 . . . . 1 . 1 2 . 4 . . 4 . 1 1 1 3 . 2 . 1 1 1 . 7 2 Database Lockouts . | . . . . . . . . . . . . . . . . . . . . . . . . . . . . . . . Manual 39 | . 9 . 1 . . . 1 . . 1 2 . 1 . . 1 2 1 . . 4 . . . 1 4 4 . 6 1 Terminals 146 | . 19 . 4 . . . 4 4 . 3 10 1 3 . 3 7 8 5 2 2 5 1 2 4 7 7 14 7 15 9 Fabricators 6 | . . . . . . . . . . . 2 . . . . . . . 1 . 3 . . . . . . . . . Repair Stations 21 | . . . . . . . . . . . . . 5 . 1 . . . 2 . . . . . . 2 2 . 7 2 Recycling Units 2 | . 2 . . . . . . . . . . . . . . . . . . . . . . . . . . . . . Scanalyzers 2 | . . . . . . . . . . . . . . . . . . . . . . . . . . . 2 . . . Garrison Access 18 | . . . . . . . 1 . 1 . 1 . 1 . 1 . 1 . 1 . 6 . 1 . . . 1 . 3 . Terminal Hacks 43 | . 7 1 1 . 1 . 2 2 . 1 4 1 . . . 1 4 2 1 1 . 1 . . . 2 7 2 1 1 Record 1 | . . . . . 1 . . . . . . . . . . . . . . . . . . . . . . . . . Part Schematic 2 | . 1 . . . . . . . . . . . . . . . 1 . . . . . . . . . . . . . Robot Analysis 2 | . 2 . . . . . . . . . . . . . . . . . . . . . . . . . . . . . Prototype ID Bank 2 | . 1 . . . . . . . . . 1 . . . . . . . . . . . . . . . . . . . Open Door 8 | . . 1 . . . . . 1 . . . . . . . . . . . . . . . . . . 5 1 . . Branch Access Points 2 | . . . 1 . . . . . . . . . . . . . 1 . . . . . . . . . . . . . Emergency Access Points 5 | . . . . . . . . 1 . . . 1 . . . . . 1 . 1 . . . . . . . 1 . . Terminal Index 1 | . . . . . . . . . . . . . . . . . . . . . . . . . . . . . 1 . Unreport Threat 2 | . . . . . . . . . . . 1 . . . . . . . . . . . . . . 1 . . . . Locate Traps 2 | . 1 . . . . . . . . . 1 . . . . . . . . . . . . . . . . . . . Reprogram Traps 1 | . . . . . . . . . . . . . . . . . 1 . . . . . . . . . . . . . Investigation Status 1 | . . . . . . . . . . . 1 . . . . . . . . . . . . . . . . . . . Hauler Manifests 3 | . 1 . . . . . 1 . . . . . . . . . . . 1 . . . . . . . . . . . Registered Components 3 | . 1 . . . . . . . . . . . . . . . 1 . . . . . . . . 1 . . . . Registered Prototypes 1 | . . . . . . . . . . . . . . . . . . . . . . . . . . . . . . 1 Zone Layout 3 | . . . . . . . 1 . . . . . . . . . . . . . . . . . . . 2 . . . Garrison Registry 3 | . . . . . . . . . . 1 . . . . . 1 . . . . . 1 . . . . . . . . Patrol Navigation 1 | . . . . . . . . . . . . . . . . . . 1 . . . . . . . . . . . . Fabricator Hacks 1 | . . . . . . . . . . . 1 . . . . . . . . . . . . . . . . . . . Network Status 1 | . . . . . . . . . . . 1 . . . . . . . . . . . . . . . . . . . Repair Station Hacks 7 | . . . . . . . . . . . . . 3 . . . . . . . . . . . . . 2 . 2 . Scan Component 5 | . . . . . . . . . . . . . 2 . . . . . . . . . . . . . 1 . 2 . Repair 2 | . . . . . . . . . . . . . 1 . . . . . . . . . . . . . 1 . . . Recycling Unit Hacks . | . . . . . . . . . . . . . . . . . . . . . . . . . . . . . . . Scanalyzer . | . . . . . . . . . . . . . . . . . . . . . . . . . . . . . . . Garrison Access Hacks 16 | . . . . . . . 1 . 1 . 1 . 1 . 1 . 1 . 1 . 4 . 1 . . . 1 . 3 . Unlock Access 10 | . . . . . . . 1 . 1 . 1 . 1 . 1 . 1 . 1 . 1 . 1 . . . 1 . . . Seal Access 4 | . . . . . . . . . . . . . . . . . . . . . 2 . . . . . . . 2 . Coupler Status 2 | . . . . . . . . . . . . . . . . . . . . . 1 . . . . . . . 1 . Unauthorized Hacks 12 | . 2 . 1 . . . 1 . . . . . 1 . . . 2 . . . . . . . 1 1 2 . 1 . Terminals 11 | . 1 . 1 . . . 1 . . . . . 1 . . . 2 . . . . . . . 1 1 2 . 1 . Assimilate 2 | . . . . . . . . . . . . . . . . . 1 . . . . . . . . . . . 1 . Botnet 6 | . . . . . . . 1 . . . . . 1 . . . 1 . . . . . . . 1 1 1 . . . Operators 2 | . 1 . . . . . . . . . . . . . . . . . . . . . . . . . 1 . . . Override 1 | . . . 1 . . . . . . . . . . . . . . . . . . . . . . . . . . . Fabricators . | . . . . . . . . . . . . . . . . . . . . . . . . . . . . . . . Repair Stations . | . . . . . . . . . . . . . . . . . . . . . . . . . . . . . . . Recycling Units 1 | . 1 . . . . . . . . . . . . . . . . . . . . . . . . . . . . . Tunnel 1 | . 1 . . . . . . . . . . . . . . . . . . . . . . . . . . . . . Scanalyzers . | . . . . . . . . . . . . . . . . . . . . . . . . . . . . . . . Garrison Access . | . . . . . . . . . . . . . . . . . . . . . . . . . . . . . . . Data Cores Recovered 2 | . . . . . . . . . . . . . 2 . . . . . . . . . . . . . . . . . Used . | . . . . . . . . . . . . . . . . . . . . . . . . . . . . . . . Hacking Detections 82 | . 6 . 1 . . . 2 1 . 2 6 . 4 . 2 4 3 2 4 1 6 . 2 2 3 4 7 3 12 5 Full Trace Events 13 | . 2 . . . . . 1 . . . 1 . 1 . . . . . . . 1 . 1 . 1 1 . . 4 . Feedback Events 1 | . . . . . . . . . . . . . . . . . . . . . . . . . . . . . 1 . Corruption 1 | . . . . . . . . . . . . . . . . . . . . . . . . . . . . . 1 . Feedback Blocked . | . . . . . . . . . . . . . . . . . . . . . . . . . . . . . . . Robot Schematics Acquired 4 | . . . . . . . . . . . . . . . . . . . . . . . . . . . 4 . . . Robots Built . | . . . . . . . . . . . . . . . . . . . . . . . . . . . . . . . Authchips . | . . . . . . . . . . . . . . . . . . . . . . . . . . . . . . . Time . | . . . . . . . . . . . . . . . . . . . . . . . . . . . . . . . Total Robot Build Rating . | . . . . . . . . . . . . . . . . . . . . . . . . . . . . . . . Part Schematics Acquired 13 | . 1 . . . . . . . . . . . . . . . 1 . . . . . . . . . 11 . . . Parts Built . | . . . . . . . . . . . . . . . . . . . . . . . . . . . . . . . Authchips . | . . . . . . . . . . . . . . . . . . . . . . . . . . . . . . . Time . | . . . . . . . . . . . . . . . . . . . . . . . . . . . . . . . Total Part Build Rating . | . . . . . . . . . . . . . . . . . . . . . . . . . . . . . . . Parts Repaired 2 | . . . . . . . . . . . . . 1 . . . . . . . . . . . . . 1 . . . Time 42 | . . . . . . . . . . . . . 22 . . . . . . . . . . . . . 20 . . . Parts Recycled . | . . . . . . . . . . . . . . . . . . . . . . . . . . . . . . . Recycled Matter . | . . . . . . . . . . . . . . . . . . . . . . . . . . . . . . . Retrieved Matter . | . . . . . . . . . . . . . . . . . . . . . . . . . . . . . . . Retrieved Components . | . . . . . . . . . . . . . . . . . . . . . . . . . . . . . . . Parts Scanalyzed . | . . . . . . . . . . . . . . . . . . . . . . . . . . . . . . . Part Schematics Acquired . | . . . . . . . . . . . . . . . . . . . . . . . . . . . . . . . Parts Damaged . | . . . . . . . . . . . . . . . . . . . . . . . . . . . . . . . Bothacking | -11 -10 -10 -9 -9 -9 -8 -8 -8 -8 -8 -7 -7 -7 -7 -6 -6 -5 -5 -4 -4 -3 -3 -3 -3 -2 -2 -2 -2 -1 -1 ------------ Run | Jun Mat Min Mat Min Exi Min Mat Gar Mat Gar Fac Gar Fac Gar Fac Gar Fac Gar Fac Gar Res Gar Res Gar Res Qua Sec Gar Acc Com Used RIF Installer 12 | . . . . . . . . 1 . 1 . 2 . 1 . 1 . 1 . 1 . 1 . 1 . . . 2 . . Hotswap 1 | . . . . . . . . . . 1 . . . . . . . . . . . . . . . . . . . . Signal Jammer 1 | . . . . . . . . . . . . . . . . 1 . . . . . . . . . . . . . . Watcher Feeds 1 | . . . . . . . . . . . . . . 1 . . . . . . . . . . . . . . . . Patrol Navigation 1 | . . . . . . . . . . . . . . . . . . . . 1 . . . . . . . . . . Alert ID Control 1 | . . . . . . . . . . . . . . . . . . 1 . . . . . . . . . . . . Program Shield 1 | . . . . . . . . . . . . 1 . . . . . . . . . . . . . . . . . . Autooverride 2 | . . . . . . . . . . . . 1 . . . . . . . . . . . 1 . . . . . . Autoassimilate 2 | . . . . . . . . . . . . . . . . . . . . . . 1 . . . . . 1 . . Crosswire 1 | . . . . . . . . . . . . . . . . . . . . . . . . . . . . 1 . . Robots Hacked 265 | . . . . . . . . 3 . 1 1 6 1 2 3 6 6 15 5 8 23 7 4 16 10 10 19 19 78 22 Non-combat 26 | . . . . . . . . . . . 1 . 1 . 2 . 2 2 2 . 6 . 1 . . 2 2 . 5 . Combat 239 | . . . . . . . . 3 . 1 . 6 . 2 1 6 4 13 3 8 17 7 3 16 10 8 17 19 73 22 Autooverrided 74 | . . . . . . . . . . . . . . . . 1 . 4 1 2 . 1 . 2 5 4 5 8 33 8 Autoassimilated 82 | . . . . . . . . . . . . . . . . . . . . . . 3 1 3 4 4 3 11 39 14 Robot Hacks Applied 117 | . . . . . . . . 3 . 1 1 6 2 2 3 5 6 11 5 6 25 3 3 11 1 3 12 . 8 . generate_echo 1 | . . . . . . . . . . . . . . . . . . . . . 1 . . . . . . . . . drop_inventory 4 | . . . . . . . . . . . . . . . . . . 1 1 . 1 . . . . . 1 . . . purge_threat 4 | . . . . . . . . . . . . . . . 1 . 2 . . . 1 . . . . . . . . . find_terminals 1 | . . . . . . . . . . . . . . . . . . . . . 1 . . . . . . . . . block_reporting 4 | . . . . . . . . . . . . . . . . . . . 1 . 1 . . . . 2 . . . . map_route 7 | . . . . . . . . . . . . . 1 . . . . . . . 1 . . . . . . . 5 . disable_scanner 2 | . . . . . . . . . . . . . . . . . . . . . . . . . . . 2 . . . overload_power 1 | . . . . . . . . . . . . 1 . . . . . . . . . . . . . . . . . . amplify_resonance 27 | . . . . . . . . . . . . . . 1 1 1 . 4 1 3 7 1 2 4 1 . 1 . . . wipe_record 2 | . . . . . . . . . . . . . . . . . . . . . . . . . . . 2 . . . overwrite_iff 18 | . . . . . . . . 3 . 1 . 2 . 1 . 2 . . . . 5 . . 4 . . . . . . streamctrl_low 1 | . . . . . . . . . . . . . . . 1 . . . . . . . . . . . . . . . formatsys_low 9 | . . . . . . . . . . . 1 . . . . . . 1 1 . 1 . 1 . . 1 3 . . . formatsys_high 36 | . . . . . . . . . . . . 3 1 . . 2 4 5 1 3 6 2 . 3 . . 3 . 3 . Relay Couplers Released 137 | . . . . . . . . 15 . 9 . 15 . 8 . 9 . 11 . 17 2 16 . 19 . . . 14 2 . Machine Destruction 130 | . . . . . . . . 15 . 5 . 15 . 8 . 9 . 11 . 17 2 13 . 19 . . . 14 2 . Programmers 7 | . . . . . . . . . . 4 . . . . . . . . . . . 3 . . . . . . . . Attached 69 | . . . . . . . . 2 . 1 1 5 1 1 1 1 . 1 1 6 6 7 1 9 3 1 3 10 7 1 Crosswired 11 | . . . . . . . . . . . . . . . . . . . . . . . . . . . . 10 1 . Fabnet Peak Effective % . | . . . . . . . . . . . . . . . . . . . . . . . . . . . . . . . Robots Rewired 28 | . . . . . . . . 3 . 9 . . . . . . . . . 1 . 3 . 9 . . . 3 . . Allies Hacked 13 | . . . . . . . . . . . . . 1 . . . . . . . 3 4 . . . . 3 . 2 . Hacks Repelled . | . . . . . . . . . . . . . . . . . . . . . . . . . . . . . . . Allies | -11 -10 -10 -9 -9 -9 -8 -8 -8 -8 -8 -7 -7 -7 -7 -6 -6 -5 -5 -4 -4 -3 -3 -3 -3 -2 -2 -2 -2 -1 -1 -------- Run | Jun Mat Min Mat Min Exi Min Mat Gar Mat Gar Fac Gar Fac Gar Fac Gar Fac Gar Fac Gar Res Gar Res Gar Res Qua Sec Gar Acc Com Total Allies 261 | . . 4 . . . . . 7 . 10 1 5 1 1 1 7 5 11 3 8 12 11 2 21 9 9 14 22 75 22 Largest Group 9 | . . 4 4 . . . . 3 . 9 7 4 2 3 1 2 5 6 1 6 6 7 7 8 8 9 3 8 7 6 Highest-Rated Group 509 | . . 71 71 . . . . 72 . 108 82 82 45 61 23 142 142 291 49 371 371 403 403 418 501 477 395 398 425 509 Highest-Rated Ally 219 | . . 31 31 . . . . 39 . 29 26 32 26 26 23 80 29 80 49 95 137 95 95 116 178 64 178 69 219 219 Total Orders 29 | . . . . . . . . . . . . 2 . . 1 2 . . . . 22 . . . . . 2 . . . STAY 2 | . . . . . . . . . . . . 1 . . . 1 . . . . . . . . . . . . . . FOLLOW 5 | . . . . . . . . . . . . 1 . . . 1 . . . . 3 . . . . . . . . . AID 3 | . . . . . . . . . . . . . . . 1 . . . . . . . . . . . 2 . . . EXPLORE 17 | . . . . . . . . . . . . . . . . . . . . . 17 . . . . . . . . . RETURN 2 | . . . . . . . . . . . . . . . . . . . . . 2 . . . . . . . . . Ally Attacks 1350 | . . . 48 . . . . 51 . 28 47 38 . 2 . 24 16 73 5 28 64 19 21 114 49 44 130 71 372 106 Total Damage 41348 | . . . 508 . . . . 1394 . 317 539 803 . 30 . 944 249 1306 168 761 3138 617 629 3680 2391 1800 4623 2451 11236 3764 Kills 212 | . . . 7 . . . . 17 . 5 8 4 . . . 8 1 11 . 6 16 1 4 23 10 8 15 13 37 18 Allies Corrupted 24 | . . . . . . . . . . . . . . . . . . 3 . . 4 2 . 1 . 2 3 . 6 3 Allies Melted 1 | . . . . . . . . . . . . . . . . . . . . . . . . 1 . . . . . . Intel | -11 -10 -10 -9 -9 -9 -8 -8 -8 -8 -8 -7 -7 -7 -7 -6 -6 -5 -5 -4 -4 -3 -3 -3 -3 -2 -2 -2 -2 -1 -1 ------- Run | Jun Mat Min Mat Min Exi Min Mat Gar Mat Gar Fac Gar Fac Gar Fac Gar Fac Gar Fac Gar Res Gar Res Gar Res Qua Sec Gar Acc Com Robot Analysis Total 2 | . 2 . . . . . . . . . . . . . . . . . . . . . . . . . . . . . Derelict Logs Recovered 1 | . . 1 . . . . . . . . . . . . . . . . . . . . . . . . . . . . Drone Launches 29 | . . . . . . . . . . . . . . . . . . . . . 26 . . . . . . . . 3 Drone Recoveries 18 | . . . . . . . . . . . . . . . . . . . . . 17 . . . . . . . . 1 Exploration | -11 -10 -10 -9 -9 -9 -8 -8 -8 -8 -8 -7 -7 -7 -7 -6 -6 -5 -5 -4 -4 -3 -3 -3 -3 -2 -2 -2 -2 -1 -1 ------------- Run | Jun Mat Min Mat Min Exi Min Mat Gar Mat Gar Fac Gar Fac Gar Fac Gar Fac Gar Fac Gar Res Gar Res Gar Res Qua Sec Gar Acc Com Turns Passed 32202 | 246 1087 1035 620 212 677 783 102 1503 162 1296 1067 1455 887 1162 825 1540 446 1312 1399 985 2387 700 174 1604 430 538 1807 1230 3477 1054 Spaces Moved 18636 | 108 557 565 297 112 419 399 56 794 95 692 667 700 471 608 432 793 266 854 813 659 1554 364 140 973 287 385 1176 831 1955 614 Core 109 | 6 . . . . . . . . . . . . . . . . . . . . . . . . . . . . . 103 Treads 7903 | 102 557 565 297 112 419 399 56 794 95 172 327 643 471 608 . 172 107 68 . . . . . . . . . . 1449 490 Legs 7768 | . . . . . . . . . . . . . . . . . . 80 813 659 1554 364 140 973 287 385 1176 831 506 . Wheels 2835 | . . . . . . . . . . 520 340 57 . . 432 621 159 706 . . . . . . . . . . . . Hover . | . . . . . . . . . . . . . . . . . . . . . . . . . . . . . . . Flight 4 | . . . . . . . . . . . . . . . . . . . . . . . . . . . . . . 4 Fastest Speed 40 | 50 160 160 160 160 160 160 155 150 158 120 120 135 160 160 145 110 125 117 117 117 110 110 115 102 117 117 114 115 115 40 Average Speed 137 | 153 160 160 160 160 160 160 155 159 158 130 142 161 160 160 145 146 147 127 119 119 116 127 115 117 119 117 116 117 148 139 Slowest Speed 250 | 160 160 160 160 160 160 163 155 235 158 237 245 240 240 160 145 240 240 195 190 190 180 180 116 190 120 187 186 190 250 250 Overloaded Moves . | . . . . . . . . . . . . . . . . . . . . . . . . . . . . . . . Propulsion Burnouts . | . . . . . . . . . . . . . . . . . . . . . . . . . . . . . . . Robots Hopped . | . . . . . . . . . . . . . . . . . . . . . . . . . . . . . . . Cave-ins Triggered . | . . . . . . . . . . . . . . . . . . . . . . . . . . . . . . . Spacefolds 6 | . . . . . . . . . . . . . . . . . . . . . . . . . . . . . . 6 Exploration Rate (%) 48 | 5 76 98 33 12 72 92 7 98 14 54 21 64 16 71 13 74 11 87 27 74 61 37 9 87 13 45 65 84 64 30 Regions Visited 30 Branch Regions 7 Pre-discovered Areas 2 | . 1 . . . 1 . . . . . . . . . . . . . . . . . . . . . . . . . Known Exits Taken 13 | . . . 1 . . 1 1 . 1 . 1 . 1 . 1 . 1 . 1 . 1 . 1 . 1 . 1 . . . Unknown Exits Taken 7 | 1 1 1 . 1 1 . . . . . . . . . . . . . . . . . . . . 1 . . 1 . Scrap Searched 2 | . . 1 . . . 1 . . . . . . . . . . . . . . . . . . . . . . . . Spaces Dug 81 | . . . . . . 1 . . . . . . . 19 . . . . 22 2 13 . . . 2 . 5 . 11 6 Terrain Destroyed 885 | . . . . 30 . 19 . 56 . 6 32 8 7 33 90 4 45 . 88 9 98 72 . 12 3 1 74 29 122 47 Melee 1 | . . . . . . . . . . . . . . . . . . . . . 1 . . . . . . . . . Projectile 345 | . . . . . . 10 . 1 . 6 11 2 7 16 17 1 . . 28 9 61 5 . 12 3 1 16 29 95 15 AOE 538 | . . . . 30 . 9 . 55 . . 21 6 . 17 73 3 45 . 60 . 36 67 . . . . 57 . 27 32 Terrain Rammed . | . . . . . . . . . . . . . . . . . . . . . . . . . . . . . . . Walls Destroyed . | . . . . . . . . . . . . . . . . . . . . . . . . . . . . . . . Machines Disabled . | . . . . . . . . . . . . . . . . . . . . . . . . . . . . . . . Actions | -11 -10 -10 -9 -9 -9 -8 -8 -8 -8 -8 -7 -7 -7 -7 -6 -6 -5 -5 -4 -4 -3 -3 -3 -3 -2 -2 -2 -2 -1 -1 --------- Run | Jun Mat Min Mat Min Exi Min Mat Gar Mat Gar Fac Gar Fac Gar Fac Gar Fac Gar Fac Gar Res Gar Res Gar Res Qua Sec Gar Acc Com Total 22701 | 147 662 624 366 127 427 461 70 936 110 905 741 888 556 716 554 1023 305 1014 1085 800 1940 523 152 1303 348 449 1474 991 2273 731 Wait 854 | . 7 4 3 1 . 11 3 17 . 35 20 14 37 37 34 36 8 13 121 24 109 35 3 60 3 16 88 22 61 32 Move 18603 | 107 556 564 296 111 418 398 56 793 95 691 667 699 471 607 432 792 266 853 813 658 1554 363 139 972 286 384 1176 830 1954 602 Hop . | . . . . . . . . . . . . . . . . . . . . . . . . . . . . . . . Pick Up 272 | 7 17 6 3 . 3 3 3 18 5 9 8 7 7 3 7 18 4 16 6 10 14 13 . 14 6 4 24 13 18 6 Fast Attach 228 | 7 1 . 2 . . 1 . 6 1 6 4 6 2 2 7 13 1 6 18 10 23 17 2 23 4 4 26 12 16 8 Attach 144 | . . . 1 1 2 1 2 4 . 3 . 4 1 1 7 7 2 3 7 2 13 8 1 8 6 4 17 3 16 20 Detach 34 | . . . . . . . . 1 . . . 1 . . . 4 . 1 5 . 5 3 . 1 1 2 4 . 3 3 Swap 304 | 1 7 2 10 2 2 6 4 14 2 5 8 12 4 8 18 14 1 16 11 24 36 2 1 14 10 6 16 23 24 1 Drop 396 | . 17 6 11 . 2 . 2 23 7 9 11 14 10 6 7 19 2 23 10 17 32 8 2 31 15 8 30 28 32 14 Fire 1516 | 22 56 38 40 12 . 41 . 49 . 85 22 94 23 52 42 96 18 57 92 32 131 63 4 88 17 18 89 47 145 43 Melee 73 | . . . . . . . . 4 . 22 . 10 . . . . . . . 20 16 . . 1 . . . . . . Ram 1 | . . . . . . . . . . . . . . . . . . . . . 1 . . . . . . . . . Kick 6 | . . . . . . . . . . . . . . . . . . . 1 . 2 . . . . . 3 . . . Crush 16 | 3 1 4 . . . . . . . . 1 . 1 . . . . 1 . . . . . . . . . . 3 2 Escape Stasis 100 | . . . . . . . . . . 40 . . . . . 24 . 23 . 1 . 5 . 4 . 2 . 1 . . Rewire 129 | . . . . . . . . 7 . . . 2 . . . . 3 2 1 2 4 6 . 87 . 1 1 12 1 . Trap 25 | . . . . . . . . . . . . 25 . . . . . . . . . . . . . . . . . . Miscellaneous . | . . . . . . . . . . . . . . . . . . . . . . . . . . . . . . . Route ------- -11/Junkyard -10/Materials (discovered 3 exits: *Mat x2 / *Min) -10/Mines (discovered 2 exits: *Mat x2) -9/Materials (discovered 3 exits: *Mat x2 / *Min) -9/Mines -9/Exiles (discovered 2 exits: [*Min x2]) -8/Mines -8/Materials -8/Garrison (discovered 4 exits: *Mat x4) -8/Materials -8/Garrison (discovered 3 exits: *Fac x3) -7/Factory (discovered 2 exits: *Fac / Gar) -7/Garrison (discovered 2 exits: *Fac x2) -7/Factory (discovered 3 exits: *Fac / [*Low] / Gar) -7/Garrison (discovered 3 exits: *Fac x3) -6/Factory -6/Garrison (discovered 3 exits: *Fac x3) -5/Factory (discovered 6 exits: *Fac / Upp x2 / Ext x2 / Gar) -5/Garrison (discovered 3 exits: *Fac x3) -4/Factory (discovered 2 exits: [*Upp] / Gar) -4/Garrison (discovered 3 exits: *Res x3) -3/Research (discovered 2 exits: *Res / Gar) -3/Garrison (discovered 3 exits: *Res x3) -3/Research -3/Garrison (discovered 3 exits: *Res x3) -2/Research -2/Quarantine -2/Section 7 -2/Garrison (discovered 3 exits: *Acc x3) -1/Access -1/Command (discovered 1 exit: [*Sur]) History --------- Turn | Location | Event 3 | -11/Junkyard | Discovered new exit (range 15) 247 | -11/Junkyard | Entered Materials 316 | -10/Materials | Build established: Mutant 691 | -10/Materials | Discovered new exit (range 4) 883 | -10/Materials | Discovered new exit (range 6) 994 | -10/Materials | Discovered new exit (range 16) 1334 | -10/Materials | Entered Mines 1574 | -10/Mines | Received a Rocket Launcher from a helpful Derelict 1772 | -10/Mines | Met a Derelict shopkeep closing up shop 1971 | -10/Mines | Discovered new exit (range 9) 2031 | -10/Mines | Core integrity fell below 50% 2088 | -10/Mines | Discovered new exit (range 7) 2202 | -10/Mines | Assisted by bots powering up and referring to "LRC-V3" 2237 | -10/Mines | Learned 8 Materials zone layouts 2266 | -10/Mines | Found a hidden stash of uninstalled traps 2279 | -10/Mines | Received a Mining Laser from a helpful Derelict 2369 | -10/Mines | Entered Materials 2369 | -9/Materials | Accompanied by 4 allies 2369 | -9/Materials | Evolved 2 slots: Propulsion x1, Utility x1 2370 | -9/Materials | Identified exit to Materials 2630 | -9/Materials | Discovered exit to Materials (range 15) 2708 | -9/Materials | Identified exit to Mines 2989 | -9/Materials | Entered Mines 3022 | -9/Mines | Deemed a non-threat by the Exiles lab entrance 3024 | -9/Mines | Discovered new exit (range 5) 3102 | -9/Mines | Excavation squad dispatched 3102 | -9/Mines | A large section of the Mines collapsed 3153 | -9/Mines | Build established: Scavenger-Mutant 3201 | -9/Mines | Entered Exiles 3225 | -9/Exiles | Discovered new exit (range 15) 3245 | -9/Exiles | Met 8R-AWN 3330 | -9/Exiles | Met EX-HEX 3378 | -9/Exiles | Met EX-BIN 3435 | -9/Exiles | Met EX-DEC 3443 | -9/Exiles | Learned location of Zion (-6) 3685 | -9/Exiles | Visited The Gauntlet 3859 | -9/Exiles | Discovered new exit (range 14) 3878 | -9/Exiles | Entered Mines 4642 | -8/Mines | Discovered exit to Materials (range 9) 4661 | -8/Mines | Entered Materials 4661 | -8/Materials | Evolved 2 slots: Utility x1, Weapon x1 4763 | -8/Materials | Identified exit to Garrison 4763 | -8/Materials | Entered Garrison 4784 | -8/Garrison | Phase Generator disabled 4787 | -8/Garrison | Discovered new exit (range 11) 4884 | -8/Garrison | Garrison Relay disabled 4900 | -8/Garrison | Triggered checkpoint 5232 | -8/Garrison | Rescued a captive Derelict 5288 | -8/Garrison | Triggered checkpoint 5334 | -8/Garrison | Discovered new exit (range 12) 5346 | -8/Garrison | Installed Relay Interface Framework 5378 | -8/Garrison | Triggered checkpoint 5393 | -8/Garrison | Build established: Scavenger-Tank 5405 | -8/Garrison | Garrison Relay disabled 5516 | -8/Garrison | Triggered checkpoint 5576 | -8/Garrison | Discovered new exit (range 15) 5914 | -8/Garrison | Triggered checkpoint 5930 | -8/Garrison | Garrison Relay disabled 5971 | -8/Garrison | Build established: Bothacker-Mutant 5981 | -8/Garrison | Discovered new exit (range 11) 6252 | -8/Garrison | Triggered checkpoint 6266 | -8/Garrison | Entered Materials 6378 | -8/Materials | Build established: Bothacker-Tank 6428 | -8/Materials | Identified exit to Garrison 6428 | -8/Materials | Entered Garrison 6520 | -8/Garrison | Triggered checkpoint 6546 | -8/Garrison | Triggered checkpoint 6564 | -8/Garrison | Core integrity fell below 50% 6725 | -8/Garrison | Discovered new exit (range 39) 6725 | -8/Garrison | Discovered new exit (range 30) 6725 | -8/Garrison | Discovered new exit (range 74) 6766 | -8/Garrison | Triggered checkpoint 6766 | -8/Garrison | Garrison Relay disabled 6996 | -8/Garrison | Triggered checkpoint 7029 | -8/Garrison | Expanded RIF knowledge: Hotswap 7112 | -8/Garrison | Build established: Bothacker-Mutant 7574 | -8/Garrison | Triggered checkpoint 7724 | -8/Garrison | Entered Factory 7724 | -7/Factory | Accompanied by 7 allies 7724 | -7/Factory | Evolved 2 slots: Propulsion x1, Utility x1 7878 | -7/Factory | Build established: Bothacker-Tank 8582 | -7/Factory | Discovered new exit (range 10) 8791 | -7/Factory | Identified exit to Garrison 8791 | -7/Factory | Entered Garrison 8791 | -7/Garrison | Accompanied by 1 ally 8826 | -7/Garrison | Expanded RIF knowledge: Program Shield 8926 | -7/Garrison | Triggered checkpoint 8967 | -7/Garrison | Garrison Relay disabled 9196 | -7/Garrison | Triggered checkpoint 9290 | -7/Garrison | Triggered checkpoint 9292 | -7/Garrison | Triggered checkpoint 9328 | -7/Garrison | Triggered checkpoint 9474 | -7/Garrison | Spotted B-75 Beast 9503 | -7/Garrison | Destroyed B-75 Beast 9893 | -7/Garrison | Garrison Relay disabled 9921 | -7/Garrison | Discovered new exit (range 4) 9946 | -7/Garrison | Triggered checkpoint 10061 | -7/Garrison | Garrison Relay disabled 10063 | -7/Garrison | Build established: Bothacker-Mutant 10200 | -7/Garrison | Expanded RIF knowledge: Autooverride 10229 | -7/Garrison | Discovered new exit (range 10) 10246 | -7/Garrison | Entered Factory 10246 | -7/Factory | Accompanied by 1 ally 10605 | -7/Factory | Repaired Med. Treads 10628 | -7/Factory | Build established: Botlord-Tank 10786 | -7/Factory | Discovered new exit (range 5) 10923 | -7/Factory | Discovered new exit (range 9) 11133 | -7/Factory | Identified exit to Garrison 11133 | -7/Factory | Entered Garrison 11133 | -7/Garrison | Accompanied by 2 allies 11254 | -7/Garrison | Triggered checkpoint 11391 | -7/Garrison | Triggered checkpoint 11394 | -7/Garrison | Triggered checkpoint 11397 | -7/Garrison | Core integrity fell below 50% 11582 | -7/Garrison | Discovered new exit (range 8) 11689 | -7/Garrison | Build established: Bothacker-Mutant 11736 | -7/Garrison | Triggered checkpoint 11780 | -7/Garrison | Garrison Relay disabled 11980 | -7/Garrison | Expanded RIF knowledge: Watcher Feeds 12020 | -7/Garrison | Discovered new exit (range 8) 12139 | -7/Garrison | Build established: Botlord-Mutant 12164 | -7/Garrison | Discovered new exit (range 10) 12234 | -7/Garrison | Garrison Relay disabled 12295 | -7/Garrison | Entered Factory 12295 | -6/Factory | Evolved 2 slots: Propulsion x1, Utility x1 12645 | -6/Factory | First assault squad dispatched 12764 | -6/Factory | Destroyed 8 combat bots 13044 | -6/Factory | Garrison activated, responded to threat 13105 | -6/Factory | Lost 4 parts (2n1u1w) 13118 | -6/Factory | Identified exit to Garrison 13120 | -6/Factory | Entered Garrison 13139 | -6/Garrison | Found embedded Infiltrators 13188 | -6/Garrison | Spotted B-75 Beast 13206 | -6/Garrison | Triggered checkpoint 13232 | -6/Garrison | Destroyed B-75 Beast 13266 | -6/Garrison | Triggered checkpoint 13315 | -6/Garrison | Lost 3 parts (1n1u1w) 13400 | -6/Garrison | Triggered checkpoint 13453 | -6/Garrison | Discovered new exit (range 24) 13453 | -6/Garrison | Discovered new exit (range 78) 13453 | -6/Garrison | Discovered new exit (range 71) 13519 | -6/Garrison | Garrison Relay disabled 13778 | -6/Garrison | Expanded RIF knowledge: Signal Jamming 14114 | -6/Garrison | Triggered checkpoint 14135 | -6/Garrison | Garrison Relay disabled 14660 | -6/Garrison | Entered Factory 14660 | -5/Factory | Accompanied by 2 allies 14660 | -5/Factory | Evolved 2 slots: Utility x2 15010 | -5/Factory | Discovered new exit (range 5) 15090 | -5/Factory | Identified exit to Upper Caves 15090 | -5/Factory | Identified exit to Extension 15106 | -5/Factory | Identified exit to Garrison 15106 | -5/Factory | Entered Garrison 15106 | -5/Garrison | Accompanied by 5 allies 15312 | -5/Garrison | Triggered checkpoint 15312 | -5/Garrison | Triggered checkpoint 15387 | -5/Garrison | Destroyed 7 combat bots 15388 | -5/Garrison | Triggered checkpoint 15414 | -5/Garrison | Garrison Relay disabled 15442 | -5/Garrison | Found embedded Infiltrators 15540 | -5/Garrison | Triggered checkpoint 15589 | -5/Garrison | Garrison Relay disabled 15649 | -5/Garrison | Discovered new exit (range 12) 15795 | -5/Garrison | Discovered new exit (range 12) 15840 | -5/Garrison | Triggered checkpoint 15860 | -5/Garrison | Expanded RIF knowledge: Alert ID Control 15904 | -5/Garrison | Triggered checkpoint 15921 | -5/Garrison | Garrison Relay disabled 16014 | -5/Garrison | Triggered checkpoint 16088 | -5/Garrison | Triggered checkpoint 16257 | -5/Garrison | Discovered new exit (range 22) 16418 | -5/Garrison | Entered Factory 16418 | -4/Factory | Evolved 2 slots: Power x1, Utility x1 16914 | -4/Factory | Found Prototype Processor 16914 | -4/Factory | Identified Exp. Targeting Computer 17286 | -4/Factory | Lost 10 parts (1p2n4u3w) 17330 | -4/Factory | System corruption reached 10% 17570 | -4/Factory | Found Exp. Melee Analysis Suite 17816 | -4/Factory | Discovered new exit (range 30) 17817 | -4/Factory | Identified exit to Garrison 17817 | -4/Factory | Entered Garrison 17817 | -4/Garrison | Warlord forces raided the area 17862 | -4/Garrison | Warlord forces retreated 17889 | -4/Garrison | Expanded RIF knowledge: Patrol Navigation 17890 | -4/Garrison | Triggered checkpoint 17916 | -4/Garrison | Triggered checkpoint 17918 | -4/Garrison | Garrison Relay disabled 18133 | -4/Garrison | Discovered new exit (range 11) 18170 | -4/Garrison | Triggered checkpoint 18218 | -4/Garrison | Garrison Relay disabled 18298 | -4/Garrison | Triggered checkpoint 18445 | -4/Garrison | Discovered new exit (range 14) 18498 | -4/Garrison | Triggered checkpoint 18528 | -4/Garrison | Garrison Relay disabled 18660 | -4/Garrison | Discovered new exit (range 9) 18686 | -4/Garrison | Found embedded Infiltrators 18722 | -4/Garrison | Triggered checkpoint 18750 | -4/Garrison | Garrison Relay disabled 18802 | -4/Garrison | Entered Research 18802 | -3/Research | Accompanied by 6 allies 18802 | -3/Research | Evolved 2 slots: Propulsion x1, Utility x1 19052 | -3/Research | First assault squad dispatched 19961 | -3/Research | Discovered new exit (range 20) 20292 | -3/Research | Found Corrupted Prototype Device 20299 | -3/Research | System corruption reached 10% 20336 | -3/Research | Identified Active Sensor Suite 20337 | -3/Research | Identified exit to Research 21013 | -3/Research | Cargo convoy interrupted 21013 | -3/Research | Spotted Executioner 21040 | -3/Research | Spotted B-86 Titan 21042 | -3/Research | Assimilated Titan 8a with formatsys_high 21065 | -3/Research | Allies destroyed Executioner 21100 | -3/Research | Lost 3 parts (2u1w) 21189 | -3/Research | Identified exit to Garrison 21189 | -3/Research | Entered Garrison 21204 | -3/Garrison | Triggered checkpoint 21217 | -3/Garrison | Lost 4 parts (1p1n1u1w) 21264 | -3/Garrison | Discovered new exit (range 80) 21264 | -3/Garrison | Discovered new exit (range 41) 21264 | -3/Garrison | Discovered new exit (range 67) 21374 | -3/Garrison | Triggered checkpoint 21377 | -3/Garrison | Garrison Relay disabled 21446 | -3/Garrison | P-80 Master assimilated allied Warden 8b 21611 | -3/Garrison | System corruption reached 30% 21688 | -3/Garrison | Lost 9 parts (3n4u2w) 21735 | -3/Garrison | Expanded RIF knowledge: Autoassimilate 21774 | -3/Garrison | Garrison Relay disabled 21808 | -3/Garrison | Triggered checkpoint 21830 | -3/Garrison | Found embedded Infiltrators 21838 | -3/Garrison | Garrison Relay disabled 21889 | -3/Garrison | Entered Research 21889 | -3/Research | Accompanied by 6 allies 22055 | -3/Research | Identified exit to Garrison 22063 | -3/Research | Entered Garrison 22063 | -3/Garrison | Accompanied by 6 allies 22138 | -3/Garrison | Triggered checkpoint 22166 | -3/Garrison | P-80 Master assimilated allied 48-CT2(x) 22264 | -3/Garrison | Triggered checkpoint 22266 | -3/Garrison | Garrison Relay disabled 22389 | -3/Garrison | Spotted B-86 Titan 22392 | -3/Garrison | Assimilated Titan 8b with formatsys_high 22402 | -3/Garrison | Triggered checkpoint 22402 | -3/Garrison | Triggered checkpoint 22412 | -3/Garrison | Triggered checkpoint 22421 | -3/Garrison | Triggered checkpoint 22505 | -3/Garrison | Lost 12 parts (2p3n3u4w) 22677 | -3/Garrison | Discovered exit to Research (range 11) 22687 | -3/Garrison | Expanded RIF knowledge: Autooverride 22722 | -3/Garrison | Triggered checkpoint 22774 | -3/Garrison | Garrison Relay disabled 22920 | -3/Garrison | Discovered exit to Research (range 14) 22968 | -3/Garrison | Triggered checkpoint 22999 | -3/Garrison | Garrison Relay disabled 23394 | -3/Garrison | Triggered checkpoint 23427 | -3/Garrison | Garrison Relay disabled 23492 | -3/Garrison | Garrison Relay disabled 23510 | -3/Garrison | Triggered checkpoint 23524 | -3/Garrison | Discovered exit to Research (range 9) 23667 | -3/Garrison | Entered Research 23667 | -2/Research | Accompanied by 4 allies 23667 | -2/Research | Evolved 2 slots: Utility x2 23913 | -2/Research | Discovered new exit (range 37) 23957 | -2/Research | First assault squad dispatched 24089 | -2/Research | Identified exit to Quarantine 24097 | -2/Research | Entered Quarantine 24097 | -2/Quarantine | Accompanied by 3 allies 24166 | -2/Quarantine | Found Alien Artifact 24166 | -2/Quarantine | Identified Phase Armor 24223 | -2/Quarantine | Found Alien Energy Cannon 24223 | -2/Quarantine | Identified Core Cannon 24335 | -2/Quarantine | Found Adv. Powered Armor 24551 | -2/Quarantine | Spotted Fortress 24630 | -2/Quarantine | Discovered new exit (range 6) 24635 | -2/Quarantine | Entered Section 7 24676 | -2/Section 7 | Found Alien Artifact 24767 | -2/Section 7 | Spotted B-90 Cyclops 24869 | -2/Section 7 | Autoassimilated Cyclops 9a with RIF 24878 | -2/Section 7 | Spotted S7 Guard 24903 | -2/Section 7 | Destroyed S7 Guard 24955 | -2/Section 7 | Lost 5 parts (1p1n2u1w) 24991 | -2/Section 7 | Found Alien Artifact 25018 | -2/Section 7 | Found Alien Artifact 25018 | -2/Section 7 | Identified Microwarp Drive 25123 | -2/Section 7 | Found Alien Artifact 25347 | -2/Section 7 | Found Alien Artifact 25364 | -2/Section 7 | Spotted S7 Guard 25392 | -2/Section 7 | Allies destroyed S7 Guard 25399 | -2/Section 7 | Found Alien Artifact 25401 | -2/Section 7 | Identified Core Regenerator 25401 | -2/Section 7 | Used Core Regenerator, restored core integrity (+362) 25426 | -2/Section 7 | Search patrols dispatched 25525 | -2/Section 7 | Spotted B-99 Colossus 25606 | -2/Section 7 | Found Alien Artifact 25606 | -2/Section 7 | Identified Core Expander 25606 | -2/Section 7 | Installed Core Expander, added new Utility slot 25650 | -2/Section 7 | Found Alien Artifact 25650 | -2/Section 7 | Identified LRC Insulator 25650 | -2/Section 7 | Installed LRC Insulator, gained EM resistance (25) 25652 | -2/Section 7 | Found Alien Artifact 25652 | -2/Section 7 | Identified LRC Storage 25652 | -2/Section 7 | Installed LRC Storage, increased inventory capacity (+2) 25660 | -2/Section 7 | Found Alien Artifact 25660 | -2/Section 7 | Identified LRC Boosters 25660 | -2/Section 7 | Installed LRC Boosters, increased mass support (+10) 25669 | -2/Section 7 | Identified Integrated Thermoelectric Network 25669 | -2/Section 7 | Identified Spacefold Activator 25669 | -2/Section 7 | Identified Integrity Redistributor 25669 | -2/Section 7 | Identified Core Reset Matrix 25715 | -2/Section 7 | Found Integrated Dissipator 25716 | -2/Section 7 | Installed Integrated Thermoelectric Network, gained heat-energy exchange potential 25717 | -2/Section 7 | Installed Integrated Dissipator, increased core heat dissipation (+20) 25922 | -2/Section 7 | Found Terrabomb 25933 | -2/Section 7 | Found Alien Artifact 25935 | -2/Section 7 | Identified Transdimensional Reconstructor 25938 | -2/Section 7 | Found Transdimensional Reconstructor 25940 | -2/Section 7 | Found Transdimensional Reconstructor 26109 | -2/Section 7 | Spotted Executioner 26119 | -2/Section 7 | Spotted Executioner 26180 | -2/Section 7 | Destroyed Executioner 26180 | -2/Section 7 | Destroyed Executioner 26228 | -2/Section 7 | Repaired Micro-nuke Launcher 26396 | -2/Section 7 | Garrison activated, responded to threat 26442 | -2/Section 7 | Identified exit to Garrison 26442 | -2/Section 7 | Entered Garrison 26442 | -2/Garrison | Accompanied by 1 ally 26482 | -2/Garrison | Triggered checkpoint 26566 | -2/Garrison | Garrison Relay disabled 26692 | -2/Garrison | Spotted B-90 Cyclops 26701 | -2/Garrison | Allies destroyed B-90 Cyclops 26702 | -2/Garrison | Triggered checkpoint 26744 | -2/Garrison | Triggered checkpoint 26748 | -2/Garrison | Triggered checkpoint 26854 | -2/Garrison | Expanded RIF knowledge: Crosswire 26884 | -2/Garrison | Triggered checkpoint 26897 | -2/Garrison | Discovered new exit (range 14) 26920 | -2/Garrison | Expanded RIF knowledge: Autoassimilate 26963 | -2/Garrison | Garrison Relay disabled 27054 | -2/Garrison | Discovered new exit (range 10) 27090 | -2/Garrison | Triggered checkpoint 27136 | -2/Garrison | Garrison Relay disabled 27338 | -2/Garrison | Triggered checkpoint 27443 | -2/Garrison | Garrison Relay disabled 27478 | -2/Garrison | Triggered checkpoint 27525 | -2/Garrison | Discovered new exit (range 12) 27597 | -2/Garrison | Found Antimissile System 27600 | -2/Garrison | Found Antimissile System 27672 | -2/Garrison | Entered Access 27672 | -1/Access | Accompanied by 5 allies 27672 | -1/Access | Evolved 2 slots: Power x1, Utility x1 27823 | -1/Access | Build established: Botlord-Tank 28172 | -1/Access | First assault squad dispatched 28479 | -1/Access | Garrison activated, responded to threat 28622 | -1/Access | Build established: Botlord-Mutant 29017 | -1/Access | Spotted B-99 Colossus 29056 | -1/Access | System corruption reached 10% 29185 | -1/Access | Build established: Botlord-Gunner 29651 | -1/Access | P-80 Master assimilated allied Director 10a 30385 | -1/Access | Build established: Botlord-Tank 31131 | -1/Access | Spotted B-99 Colossus 31136 | -1/Access | Spotted B-99 Colossus 31145 | -1/Access | Discovered new exit (range 3) 31149 | -1/Access | Entered Command 31317 | -1/Command | Build established: Botlord-Gunner 31399 | -1/Command | First assault squad dispatched 31404 | -1/Command | Spotted B-99 Colossus 31405 | -1/Command | Autoassimilated Colossus 10a with RIF 31745 | -1/Command | Found Prototype Processor 31745 | -1/Command | Identified Exp. Core Analyzer 31984 | -1/Command | Spotted M Guard 31984 | -1/Command | Spotted M Guard 31985 | -1/Command | Spotted Combat Programmer 31986 | -1/Command | Spotted Combat Programmer 32001 | -1/Command | Core integrity fell below 50% 32013 | -1/Command | System corruption reached 30% 32018 | -1/Command | Found Hvy. Reflective Plating 32030 | -1/Command | Destroyed Combat Programmer 32044 | -1/Command | Failed to warp due to unstable space 32047 | -1/Command | Core integrity fell below 20% 32094 | -1/Command | Lost 9 parts (1p2n2u4w) 32115 | -1/Command | Used Integrity Redistributor, redistributed integrity to core (+212) 32146 | -1/Command | Allies destroyed Combat Programmer 32171 | -1/Command | Lost 7 parts (1p2n2u2w) 32188 | -1/Command | Spotted B-99 Colossus 32201 | -1/Command | Spotted B-99 Colossus 32201 | -1/Command | Spotted B-99 Colossus 32203 | -1/Command | Discovered new exit (range 3) 32203 | -1/Command | Core destroyed Last Messages --------------- 32188_ Plague 10n destroyed. 32194_ Mni. Drone Bay destroyed. 32196_ Relay Coupler [C] destroyed. 32196_ Spacefolded through Wall. 32197_ Acquired Prototype Flight Unit. 32197_ Identified Imp. Q-thruster. 32199_ Dropped Biometal Medium Treads. 32201_ Spacefolded through Wall. 32201_ Knocked back. 32201_ Slug penetrates Wall. 32201_ Penetrated by Slug. 32201_ Slug penetrates Wall. 32202_ Knocked back. 32202_ Slug penetrates Wall. 32202_ Penetrated by Slug. 32202_ Triggered Stasis Trap. 32202_ A bubble of rippling energy engulfs the area. 32202_ Field strength at 86. 32203_ EXIT=FOUND 32203_ Spacefolded through Access Shell. Map ----- +----------------------------------------------------+ | ???????????????????????????????????####??????????? | | ??????????????????????????######### ????????? | | ?????????????????????????? ????? | | ??????????????????????????# ??? | | ???????????##+#???????????# #? | | ???????????? ##########?# ## | | ??????????? #?# | | ????????????# #?# | | ???????????# #?# | | *! ???????????# #?# | | *! ????????????# ### | | * ???########## | | ???# # ##### | | ???# # #???# | | ! ???# + #???# | | #???# "" ########???####### | | #???# """" #????????????????# | | #???# """" #????????????????# | | #???# "" #????????????????##### | | ##### #????????????????########### ##/## | | # #?##############?# ###### # | | + "" #?# #?#!! / / | | ### # """" #?# % #?#! ######### == | | #?# # """" #?# #?# #???????#* = | | #?# # "" #?# """"""% ###! ==#???????# | | #?# # #?????" @" #?######???????##### | | #?# # #?????" <" " "#?????????????????? | | #?# # #?????" "" " ##?????????????????? | | #?# # #?????" " #??????????????????? | | #?# # !#?????"""""" "??????????????????? | | #?# ##########?????????? #??????????????????? | | #?# # #?????????? #??????????????????? | | #?# # #????????? #??????????????????? | | #?# # #????????? ####??????????????????? | | #?# # #???????? ??????????????????????? | | #?# # #???????? ??????????????????????? | | ### # #??????? ??????????????????????? | | # "" #??????? ??????????????????????? | | + """" #????????? ??????????????????????? | | ## # """" #?????????????????????????????????? | | ?# # "" #?????????????????????????????????? | | ?# # #?????????????????????????????????? | | ?# #### #?????????????????????????????????? | | ?# #??# "" #?????????????????????????????????? | | ?# #??# ="""" #?????????????????????????????????? | | ?# #??#=%"""" #?????????????????????????????????? | | ?# ???# ! "" #?????????????????????????????????? | | ?# ???#!! #?????????????????????????????????? | | ?# ???# ] #?????????????????????????????????? | | ?# #########+###?????????????????????????????????? | +----------------------------------------------------+ Best States ------------- Heat Dissipation 107 Energy Generation 65 Energy Capacity 850 Matter Stores 300 Matter Capacity 300 Sight Range 16 Terrain Scan Density 10 Jamming Range 16 Corruption Containment 12 Corruption Block 20 Armor Coverage 1350 Resistance: KI 30 Resistance: TH 25 Resistance: EM 25 Core Shielding 30 Point Defense Rating 480 Melee Speed Boost 30 Evasion (%) 55 Targeting Accuracy 28 Melee Accuracy 12 Target Analysis 8 Core Analysis 6 Recoil Reduction 6 Offensive Hacking 20 Defensive Hacking 12 Relay Coupler Types 9 Relay Coupler Value 327 Item Schematics ----------------- Hcp. Storage Unit | -10/Materials | Hacked Adv. Corruption Screen | -5/Factory | Hacked Neutron Missile Launcher | -2/Section 7 | Archive Centrium Medium Armor Plating | -2/Section 7 | Archive Lrn. Phase Cannon | -2/Section 7 | Archive Centrium Greatsword | -2/Section 7 | Archive Adv. Kinecellerator | -2/Section 7 | Archive Enh. Biometal Leg | -2/Section 7 | Archive Imp. Quantum Reactor | -2/Section 7 | Archive Gravity Neutralizer | -2/Section 7 | Archive Exp. Energy Well | -2/Section 7 | Archive Adv. Micro-nuke Launcher | -2/Section 7 | Archive Imp. Matter Compressor | -2/Section 7 | Archive Robot Schematics ------------------ A-15 Conveyor | -2/Section 7 | Archive H-88 Terminator | -2/Section 7 | Archive E-15 Imp | -2/Section 7 | Archive K-01 Serf | -2/Section 7 | Archive Fabricated ------------ Nothing Alien Tech Used ----------------- Phase Armor Core Cannon Microwarp Drive Core Regenerator Core Expander LRC Insulator LRC Storage LRC Boosters Integrated Thermoelectric Network Integrated Dissipator Transdimensional Reconstructor Integrity Redistributor Spacefold Activator Achievements -------------- None Challenges ------------ None Game ------ Seed NuclearCryofiberModule Manual? 0 Play Time 06:54:45 Cumulative 342.8 hours Start 2023.03.26 @ 15:09:08 End 2023.03.28 @ 22:38:35 Sessions 3 Manual Loads 0 Difficulty Rogue Special Mode None Game No. 216 Rogue 193 Adventurer 6 Explorer 17 Win Type - Total 25 Types 17/0/4/1/0/1/1/1/0 Lore% 95 Gallery% 95 Achievement% 78 Wizard Run 0 Options --------- ASCII 0 Keyboard 0 Movement Numpad Keybinds 0 Fullscreen 1 Font 12/Fuzzy Map View 83x54 Tactical HUD 1 Map Filters NONE Filters NONE Steam 1 RUN: 06cbdf27-e2f8-44ae-8861-7e95e3b988e2